Department Family,Entity,Date,Expense Type,Expense Area,Supplier,Transaction Number,AP Amount,Description,Supplier Postcode
Department of Health,NHS Sheffield CCG,8/31/2020,Voids and Subsidies,PRC DELEGATED CO-COMMISSIONING,COMMUNITY HEALTH PARTNERSHIPS LTD,33402001,"37,796.72",,M1 5AN
Department of Health,NHS Sheffield CCG,8/31/2020,Voids and Subsidies,RECHARGES NHS PROPERTY SERVICES LTD,COMMUNITY HEALTH PARTNERSHIPS LTD,33402001,"96,714.68",https://nww.einvoice-prod.sbs.nhs.uk:8179/invoicepdf/c6f64b20-28b8-5f96-a3fb-7be18352d5ee,M1 5AN
Department of Health,NHS Sheffield CCG,8/31/2020,Soc Care-Support Prim Care,COMMUNITY SERVICES,SHEFFIELD CITY COUNCIL,33433730,"150,000.00",,S1 2HH
Department of Health,NHS Sheffield CCG,8/31/2020,Cont Care- Adult 100% Fully Funded,CHC ADULT FULLY FUNDED,SOUTH YORKSHIRE HOUSING ASSOCIATION LTD,33450010,"25,500.00",Birch Avenue - Additional Staff August 20,S1 4HF
Department of Health,NHS Sheffield CCG,8/31/2020,Cont Care- Adult 100% Fully Funded,CHC ADULT FULLY FUNDED,SOUTH YORKSHIRE HOUSING ASSOCIATION LTD,33450039,"46,763.59",Birch Avenue - August 20,S1 4HF
Department of Health,NHS Sheffield CCG,8/31/2020,Clinical&Medical-Independent Sector,MENTAL HEALTH CONTRACTS,SUSASH GB LTD T/A EAGLE HOUSE,33450043,"30,091.75",Eagle House - August 20,S11 8NP
Department of Health,NHS Sheffield CCG,8/31/2020,Clinical&Medical-Independent Sector,MENTAL HEALTH CONTRACTS,SOUTH YORKSHIRE HOUSING ASSOCIATION LTD,33450066,"34,434.83",Lister Avenue - August 20,S1 4HF
Department of Health,NHS Sheffield CCG,8/31/2020,Cont Care- Prior Year Payments,ADULT JOINT FUNDED CONTINUING CARE,WILLOWBECK HEALTH CARE LTD,33451147,"-207,855.62",,S4 8AR
Department of Health,NHS Sheffield CCG,8/31/2020,C&M-APMS DES Extended Hours Access,GP FORWARD VIEW,PRIMARY CARE SHEFFIELD LTD,33451239,"302,608.33",,S9 4EU
Department of Health,NHS Sheffield CCG,8/31/2020,C&M-GMS LES Basket of Procedures,LOCAL ENHANCED SERVICES,PRIMARY CARE SHEFFIELD LTD,33451245,"53,558.33",,S9 4EU
Department of Health,NHS Sheffield CCG,8/31/2020,C&M-PMS Contract Value,PRC DELEGATED CO-COMMISSIONING,ABBEY LANE SURGERY,33487953,"23,945.96",BABALP,S8 0BJ
Department of Health,NHS Sheffield CCG,8/31/2020,C&M-PMS Funding Differential Review,PRC DELEGATED CO-COMMISSIONING,ABBEY LANE SURGERY,33487953,454.56,ZFUNFP,S8 0BJ
Department of Health,NHS Sheffield CCG,8/31/2020,C&M-PMS PCN DES Participation,PRC DELEGATED CO-COMMISSIONING,ABBEY LANE SURGERY,33487953,449.67,PARTIP,S8 0BJ
Department of Health,NHS Sheffield CCG,8/31/2020,C&M-PMS Prem Notional Rent,PRC DELEGATED CO-COMMISSIONING,ABBEY LANE SURGERY,33487953,"2,166.67",NRENT,S8 0BJ
Department of Health,NHS Sheffield CCG,8/31/2020,C&M-PMS Prem Rates,PRC DELEGATED CO-COMMISSIONING,ABBEY LANE SURGERY,33487953,773.00,RANDRP,S8 0BJ
Department of Health,NHS Sheffield CCG,8/31/2020,C&M-PMS QOF Aspiration,PRC DELEGATED CO-COMMISSIONING,ABBEY LANE SURGERY,33487953,"3,481.25",QUASPP,S8 0BJ
Department of Health,NHS Sheffield CCG,8/31/2020,C&M-PMS Contract Value,PRC DELEGATED CO-COMMISSIONING,BARNSLEY ROAD SURGERY,33487955,"20,985.95",BABALP,S5 0QJ
Department of Health,NHS Sheffield CCG,8/31/2020,C&M-PMS Funding Differential Review,PRC DELEGATED CO-COMMISSIONING,BARNSLEY ROAD SURGERY,33487955,506.44,ZFUNFP,S5 0QJ
Department of Health,NHS Sheffield CCG,8/31/2020,C&M-PMS PCN DES Participation,PRC DELEGATED CO-COMMISSIONING,BARNSLEY ROAD SURGERY,33487955,393.76,PARTIP,S5 0QJ
Department of Health,NHS Sheffield CCG,8/31/2020,C&M-PMS Prem Notional Rent,PRC DELEGATED CO-COMMISSIONING,BARNSLEY ROAD SURGERY,33487955,"2,652.17",NRENT,S5 0QJ
Department of Health,NHS Sheffield CCG,8/31/2020,C&M-PMS QOF Aspiration,PRC DELEGATED CO-COMMISSIONING,BARNSLEY ROAD SURGERY,33487955,"2,289.13",QUASPP,S5 0QJ
Department of Health,NHS Sheffield CCG,8/31/2020,C&M-PMS Contract Value,PRC DELEGATED CO-COMMISSIONING,BIRLEY HEALTH CENTRE,33487957,"64,972.79",BABALP,S12 3BP
Department of Health,NHS Sheffield CCG,8/31/2020,C&M-PMS Funding Differential Review,PRC DELEGATED CO-COMMISSIONING,BIRLEY HEALTH CENTRE,33487957,"1,118.40",ZFUNFP,S12 3BP
Department of Health,NHS Sheffield CCG,8/31/2020,C&M-PMS PCN DES Participation,PRC DELEGATED CO-COMMISSIONING,BIRLEY HEALTH CENTRE,33487957,"1,222.93",PARTIP,S12 3BP
Department of Health,NHS Sheffield CCG,8/31/2020,C&M-PMS PCO Other,PRC DELEGATED CO-COMMISSIONING,BIRLEY HEALTH CENTRE,33487957,539.80,CQCRP,S12 3BP
Department of Health,NHS Sheffield CCG,8/31/2020,C&M-PMS Prem Notional Rent,PRC DELEGATED CO-COMMISSIONING,BIRLEY HEALTH CENTRE,33487957,"7,600.58",NRENT,S12 3BP
Department of Health,NHS Sheffield CCG,8/31/2020,C&M-PMS Prem Rates,PRC DELEGATED CO-COMMISSIONING,BIRLEY HEALTH CENTRE,33487957,"1,697.00",RANDRP,S12 3BP
Department of Health,NHS Sheffield CCG,8/31/2020,C&M-PMS Prem Water Rates,PRC DELEGATED CO-COMMISSIONING,BIRLEY HEALTH CENTRE,33487957,382.81,RAMWP,S12 3BP
Department of Health,NHS Sheffield CCG,8/31/2020,C&M-PMS QOF Aspiration,PRC DELEGATED CO-COMMISSIONING,BIRLEY HEALTH CENTRE,33487957,"12,851.35",QUASPP,S12 3BP
Department of Health,NHS Sheffield CCG,8/31/2020,C&M-PMS GP Statutory Levy,PRC DELEGATED CO-COMMISSIONING,BURNCROSS SURGERY,33487958,-527.77,STATL,S35 1RN
Department of Health,NHS Sheffield CCG,8/31/2020,C&M-PMS Prem Rates,PRC DELEGATED CO-COMMISSIONING,BURNCROSS SURGERY,33487958,"-4,533.00",RANDRP,S35 1RN
Department of Health,NHS Sheffield CCG,8/31/2020,C&M-PMS Contract Value,PRC DELEGATED CO-COMMISSIONING,BURNCROSS SURGERY,33487959,"122,126.13",BABALP,S35 1RN
Department of Health,NHS Sheffield CCG,8/31/2020,C&M-PMS DES Learn Dsblty Hlth Chk,PRC DELEGATED CO-COMMISSIONING,BURNCROSS SURGERY,33487959,"1,400.00",LEARNP,S35 1RN
Department of Health,NHS Sheffield CCG,8/31/2020,C&M-PMS Funding Differential Review,PRC DELEGATED CO-COMMISSIONING,BURNCROSS SURGERY,33487959,"2,746.32",ZFUNFP,S35 1RN
Department of Health,NHS Sheffield CCG,8/31/2020,C&M-PMS PCN DES Participation,PRC DELEGATED CO-COMMISSIONING,BURNCROSS SURGERY,33487959,"2,282.33",PARTIP,S35 1RN
Department of Health,NHS Sheffield CCG,8/31/2020,C&M-PMS Prem Notional Rent,PRC DELEGATED CO-COMMISSIONING,BURNCROSS SURGERY,33487959,"14,919.67",NRENT,S35 1RN
Department of Health,NHS Sheffield CCG,8/31/2020,C&M-PMS Prem Rates,PRC DELEGATED CO-COMMISSIONING,BURNCROSS SURGERY,33487959,"24,679.89",RANDRP,S35 1RN
Department of Health,NHS Sheffield CCG,8/31/2020,C&M-PMS QOF Aspiration,PRC DELEGATED CO-COMMISSIONING,BURNCROSS SURGERY,33487959,"15,253.36",QUASPP,S35 1RN
Department of Health,NHS Sheffield CCG,8/31/2020,C&M-PMS Contract Value,PRC DELEGATED CO-COMMISSIONING,DEEPCAR MEDICAL CENTRE,33487963,"42,020.72",BABALP,S36 2RA
Department of Health,NHS Sheffield CCG,8/31/2020,C&M-PMS Funding Differential Review,PRC DELEGATED CO-COMMISSIONING,DEEPCAR MEDICAL CENTRE,33487963,722.88,ZFUNFP,S36 2RA
Department of Health,NHS Sheffield CCG,8/31/2020,C&M-PMS Out of Hours Opt Outs,PRC DELEGATED CO-COMMISSIONING,DEEPCAR MEDICAL CENTRE,33487963,10.55,APMOOH,S36 2RA
Department of Health,NHS Sheffield CCG,8/31/2020,C&M-PMS PCN DES Participation,PRC DELEGATED CO-COMMISSIONING,DEEPCAR MEDICAL CENTRE,33487963,790.09,PARTIP,S36 2RA
Department of Health,NHS Sheffield CCG,8/31/2020,C&M-PMS Prem Healthcentre Rent,PRC DELEGATED CO-COMMISSIONING,DEEPCAR MEDICAL CENTRE,33487963,"30,655.23",HEALTH,S36 2RA
Department of Health,NHS Sheffield CCG,8/31/2020,C&M-PMS QOF Aspiration,PRC DELEGATED CO-COMMISSIONING,DEEPCAR MEDICAL CENTRE,33487963,"5,274.02",QUASPP,S36 2RA
Department of Health,NHS Sheffield CCG,8/31/2020,C&M-PMS Contract Value,PRC DELEGATED CO-COMMISSIONING,DOVERCOURT SURGERY,33487965,"75,292.54",BABALP,S2 5FX
Department of Health,NHS Sheffield CCG,8/31/2020,C&M-PMS Funding Differential Review,PRC DELEGATED CO-COMMISSIONING,DOVERCOURT SURGERY,33487965,"1,158.87",ZFUNFP,S2 5FX
Department of Health,NHS Sheffield CCG,8/31/2020,C&M-PMS PCN DES Participation,PRC DELEGATED CO-COMMISSIONING,DOVERCOURT SURGERY,33487965,"1,405.71",PARTIP,S2 5FX
Department of Health,NHS Sheffield CCG,8/31/2020,C&M-PMS PCO Locum Adop/Pat/Mat,PRC DELEGATED CO-COMMISSIONING,DOVERCOURT SURGERY,33487965,"8,025.26",SICKC,S2 5FX
Department of Health,NHS Sheffield CCG,8/31/2020,C&M-PMS PCO Other,PRC DELEGATED CO-COMMISSIONING,DOVERCOURT SURGERY,33487965,542.80,CQCRP,S2 5FX
Department of Health,NHS Sheffield CCG,8/31/2020,C&M-PMS Prem Actual Rent,PRC DELEGATED CO-COMMISSIONING,DOVERCOURT SURGERY,33487965,"12,400.00",RENT,S2 5FX
Department of Health,NHS Sheffield CCG,8/31/2020,C&M-PMS Prem Notional Rent,PRC DELEGATED CO-COMMISSIONING,DOVERCOURT SURGERY,33487965,"1,708.33",NRENT,S2 5FX
Department of Health,NHS Sheffield CCG,8/31/2020,C&M-PMS QOF Aspiration,PRC DELEGATED CO-COMMISSIONING,DOVERCOURT SURGERY,33487965,"7,547.35",QUASPP,S2 5FX
Department of Health,NHS Sheffield CCG,8/31/2020,C&M-PMS Contract Value,PRC DELEGATED CO-COMMISSIONING,DR MEHROTRA & PARTNER,33487967,"25,077.95",BABALP,S9 5DH
Department of Health,NHS Sheffield CCG,8/31/2020,C&M-PMS Funding Differential Review,PRC DELEGATED CO-COMMISSIONING,DR MEHROTRA & PARTNER,33487967,520.47,ZFUNFP,S9 5DH
Department of Health,NHS Sheffield CCG,8/31/2020,C&M-PMS PCN DES Participation,PRC DELEGATED CO-COMMISSIONING,DR MEHROTRA & PARTNER,33487967,472.15,PARTIP,S9 5DH
Department of Health,NHS Sheffield CCG,8/31/2020,C&M-PMS Prem Notional Rent,PRC DELEGATED CO-COMMISSIONING,DR MEHROTRA & PARTNER,33487967,"5,157.29",NRENT,S9 5DH
Department of Health,NHS Sheffield CCG,8/31/2020,C&M-PMS Prem Rates,PRC DELEGATED CO-COMMISSIONING,DR MEHROTRA & PARTNER,33487967,"1,741.00",RANDRP,S9 5DH
Department of Health,NHS Sheffield CCG,8/31/2020,C&M-PMS QOF Aspiration,PRC DELEGATED CO-COMMISSIONING,DR MEHROTRA & PARTNER,33487967,"3,552.62",QUASPP,S9 5DH
Department of Health,NHS Sheffield CCG,8/31/2020,C&M-PMS Contract Value,PRC DELEGATED CO-COMMISSIONING,DR MILNER & PARTNERS,33487969,"77,598.84",BABALP,S6 4JQ
Department of Health,NHS Sheffield CCG,8/31/2020,C&M-PMS Funding Differential Review,PRC DELEGATED CO-COMMISSIONING,DR MILNER & PARTNERS,33487969,"1,377.22",ZFUNFP,S6 4JQ
Department of Health,NHS Sheffield CCG,8/31/2020,C&M-PMS PCN DES Participation,PRC DELEGATED CO-COMMISSIONING,DR MILNER & PARTNERS,33487969,"1,452.54",PARTIP,S6 4JQ
Department of Health,NHS Sheffield CCG,8/31/2020,C&M-PMS Prem Actual Rent,PRC DELEGATED CO-COMMISSIONING,DR MILNER & PARTNERS,33487969,"11,382.00",RENT,S6 4JQ
Department of Health,NHS Sheffield CCG,8/31/2020,C&M-PMS Prem Notional Rent,PRC DELEGATED CO-COMMISSIONING,DR MILNER & PARTNERS,33487969,"4,462.42",NRENT,S6 4JQ
Department of Health,NHS Sheffield CCG,8/31/2020,C&M-PMS Prem Rates,PRC DELEGATED CO-COMMISSIONING,DR MILNER & PARTNERS,33487969,"2,766.00",RANDRP,S6 4JQ
Department of Health,NHS Sheffield CCG,8/31/2020,C&M-PMS QOF Aspiration,PRC DELEGATED CO-COMMISSIONING,DR MILNER & PARTNERS,33487969,"6,594.77",QUASPP,S6 4JQ
Department of Health,NHS Sheffield CCG,8/31/2020,C&M-PMS Contract Value,PRC DELEGATED CO-COMMISSIONING,DUNNINC ROAD SURGERY,33487971,"21,770.95",BABALP,S5 0AE
Department of Health,NHS Sheffield CCG,8/31/2020,C&M-PMS Funding Differential Review,PRC DELEGATED CO-COMMISSIONING,DUNNINC ROAD SURGERY,33487971,506.77,ZFUNFP,S5 0AE
Department of Health,NHS Sheffield CCG,8/31/2020,C&M-PMS PCN DES Participation,PRC DELEGATED CO-COMMISSIONING,DUNNINC ROAD SURGERY,33487971,408.46,PARTIP,S5 0AE
Department of Health,NHS Sheffield CCG,8/31/2020,C&M-PMS Prem Notional Rent,PRC DELEGATED CO-COMMISSIONING,DUNNINC ROAD SURGERY,33487971,"1,695.83",NRENT,S5 0AE
Department of Health,NHS Sheffield CCG,8/31/2020,C&M-PMS Prem Water Rates,PRC DELEGATED CO-COMMISSIONING,DUNNINC ROAD SURGERY,33487971,36.95,RAMWP,S5 0AE
Department of Health,NHS Sheffield CCG,8/31/2020,C&M-PMS QOF Aspiration,PRC DELEGATED CO-COMMISSIONING,DUNNINC ROAD SURGERY,33487971,"1,748.41",QUASPP,S5 0AE
Department of Health,NHS Sheffield CCG,8/31/2020,C&M-PCN DES Support Payment,PRC DELEGATED CO-COMMISSIONING,DYKES HALL MEDICAL CENTRE,33487973,"1,595.45",SUPPPP,S6 4GQ
Department of Health,NHS Sheffield CCG,8/31/2020,C&M-PMS Contract Value,PRC DELEGATED CO-COMMISSIONING,DYKES HALL MEDICAL CENTRE,33487973,"72,083.31",BABALP,S6 4GQ
Department of Health,NHS Sheffield CCG,8/31/2020,C&M-PMS DES Extended Hours Access,PRC DELEGATED CO-COMMISSIONING,DYKES HALL MEDICAL CENTRE,33487973,"4,338.04",EXTHDP,S6 4GQ
Department of Health,NHS Sheffield CCG,8/31/2020,C&M-PMS Funding Differential Review,PRC DELEGATED CO-COMMISSIONING,DYKES HALL MEDICAL CENTRE,33487973,"1,473.36",ZFUNFP,S6 4GQ
Department of Health,NHS Sheffield CCG,8/31/2020,C&M-PMS Out of Hours Opt Outs,PRC DELEGATED CO-COMMISSIONING,DYKES HALL MEDICAL CENTRE,33487973,26.43,APMOOH,S6 4GQ
Department of Health,NHS Sheffield CCG,8/31/2020,C&M-PMS PCN DES Clinical Director,PRC DELEGATED CO-COMMISSIONING,DYKES HALL MEDICAL CENTRE,33487973,"2,160.04",CLINDP,S6 4GQ
Department of Health,NHS Sheffield CCG,8/31/2020,C&M-PMS PCN DES PCN support,LOCAL ENHANCED SERVICES,DYKES HALL MEDICAL CENTRE,33487973,"4,487.63",PCNSUP,S6 4GQ
Department of Health,NHS Sheffield CCG,8/31/2020,C&M-PMS PCN DES Participation,PRC DELEGATED CO-COMMISSIONING,DYKES HALL MEDICAL CENTRE,33487973,"1,355.09",PARTIP,S6 4GQ
Department of Health,NHS Sheffield CCG,8/31/2020,C&M-PMS Prem Notional Rent,PRC DELEGATED CO-COMMISSIONING,DYKES HALL MEDICAL CENTRE,33487973,"5,377.08",NRENT,S6 4GQ
Department of Health,NHS Sheffield CCG,8/31/2020,C&M-PMS Prem Rates,PRC DELEGATED CO-COMMISSIONING,DYKES HALL MEDICAL CENTRE,33487973,"1,366.00",RANDRP,S6 4GQ
Department of Health,NHS Sheffield CCG,8/31/2020,C&M-PMS QOF Aspiration,PRC DELEGATED CO-COMMISSIONING,DYKES HALL MEDICAL CENTRE,33487973,"9,466.10",QUASPP,S6 4GQ
Department of Health,NHS Sheffield CCG,8/31/2020,C&M-PMS Contract Value,PRC DELEGATED CO-COMMISSIONING,EAST BANK MEDICAL CENTRE,33487975,"49,796.30",BABALP,S2 2AG
Department of Health,NHS Sheffield CCG,8/31/2020,C&M-PMS Funding Differential Review,PRC DELEGATED CO-COMMISSIONING,EAST BANK MEDICAL CENTRE,33487975,771.92,ZFUNFP,S2 2AG
Department of Health,NHS Sheffield CCG,8/31/2020,C&M-PMS PCN DES Participation,PRC DELEGATED CO-COMMISSIONING,EAST BANK MEDICAL CENTRE,33487975,937.18,PARTIP,S2 2AG
Department of Health,NHS Sheffield CCG,8/31/2020,C&M-PMS Prem Notional Rent,PRC DELEGATED CO-COMMISSIONING,EAST BANK MEDICAL CENTRE,33487975,"10,583.33",NRENT,S2 2AG
Department of Health,NHS Sheffield CCG,8/31/2020,C&M-PMS Prem Rates,PRC DELEGATED CO-COMMISSIONING,EAST BANK MEDICAL CENTRE,33487975,"2,944.00",RANDRP,S2 2AG
Department of Health,NHS Sheffield CCG,8/31/2020,C&M-PMS QOF Aspiration,PRC DELEGATED CO-COMMISSIONING,EAST BANK MEDICAL CENTRE,33487975,"5,136.41",QUASPP,S2 2AG
Department of Health,NHS Sheffield CCG,8/31/2020,C&M-PMS Contract Value,PRC DELEGATED CO-COMMISSIONING,FIRTH PARK SURGERY,33487977,"77,432.28",BABALP,S5 6HH
Department of Health,NHS Sheffield CCG,8/31/2020,C&M-PMS Out of Hours Opt Outs,PRC DELEGATED CO-COMMISSIONING,FIRTH PARK SURGERY,33487977,7.50,APMOOH,S5 6HH
Department of Health,NHS Sheffield CCG,8/31/2020,C&M-PMS PCN DES Participation,PRC DELEGATED CO-COMMISSIONING,FIRTH PARK SURGERY,33487977,"1,453.48",PARTIP,S5 6HH
Department of Health,NHS Sheffield CCG,8/31/2020,C&M-PMS Prem Notional Rent,PRC DELEGATED CO-COMMISSIONING,FIRTH PARK SURGERY,33487977,"4,500.00",NRENT,S5 6HH
Department of Health,NHS Sheffield CCG,8/31/2020,C&M-PMS Prem Rates,PRC DELEGATED CO-COMMISSIONING,FIRTH PARK SURGERY,33487977,"1,844.00",RANDRP,S5 6HH
Department of Health,NHS Sheffield CCG,8/31/2020,C&M-PMS Prem Water Rates,PRC DELEGATED CO-COMMISSIONING,FIRTH PARK SURGERY,33487977,122.61,RAMWP,S5 6HH
Department of Health,NHS Sheffield CCG,8/31/2020,C&M-PMS QOF Aspiration,PRC DELEGATED CO-COMMISSIONING,FIRTH PARK SURGERY,33487977,"7,425.15",QUASPP,S5 6HH
Department of Health,NHS Sheffield CCG,8/31/2020,C&M-PMS Contract Value,PRC DELEGATED CO-COMMISSIONING,FALKLAND HOUSE,33487979,"26,495.78",BABALP,S11 7PL
Department of Health,NHS Sheffield CCG,8/31/2020,C&M-PMS Funding Differential Review,PRC DELEGATED CO-COMMISSIONING,FALKLAND HOUSE,33487979,358.89,ZFUNFP,S11 7PL
Department of Health,NHS Sheffield CCG,8/31/2020,C&M-PMS Out of Hours Opt Outs,PRC DELEGATED CO-COMMISSIONING,FALKLAND HOUSE,33487979,8.04,APMOOH,S11 7PL
Department of Health,NHS Sheffield CCG,8/31/2020,C&M-PMS PCN DES Participation,PRC DELEGATED CO-COMMISSIONING,FALKLAND HOUSE,33487979,497.02,PARTIP,S11 7PL
Department of Health,NHS Sheffield CCG,8/31/2020,C&M-PMS PCO Other,PRC DELEGATED CO-COMMISSIONING,FALKLAND HOUSE,33487979,276.50,CQCRP,S11 7PL
Department of Health,NHS Sheffield CCG,8/31/2020,C&M-PMS Prem Notional Rent,PRC DELEGATED CO-COMMISSIONING,FALKLAND HOUSE,33487979,"1,866.67",NRENT,S11 7PL
Department of Health,NHS Sheffield CCG,8/31/2020,C&M-PMS Prem Rates,PRC DELEGATED CO-COMMISSIONING,FALKLAND HOUSE,33487979,786.00,RANDRP,S11 7PL
Department of Health,NHS Sheffield CCG,8/31/2020,C&M-PMS QOF Aspiration,PRC DELEGATED CO-COMMISSIONING,FALKLAND HOUSE,33487979,"2,962.47",QUASPP,S11 7PL
Department of Health,NHS Sheffield CCG,8/31/2020,C&M-PMS Contract Value,PRC DELEGATED CO-COMMISSIONING,GLEADLESS MEDICAL CENTRE,33487981,"70,031.27",BABALP,S14 1PQ
Department of Health,NHS Sheffield CCG,8/31/2020,C&M-PMS Funding Differential Review,PRC DELEGATED CO-COMMISSIONING,GLEADLESS MEDICAL CENTRE,33487981,"1,547.97",ZFUNFP,S14 1PQ
Department of Health,NHS Sheffield CCG,8/31/2020,C&M-PMS Out of Hours Opt Outs,PRC DELEGATED CO-COMMISSIONING,GLEADLESS MEDICAL CENTRE,33487981,11.54,APMOOH,S14 1PQ
Department of Health,NHS Sheffield CCG,8/31/2020,C&M-PMS PCN DES Participation,PRC DELEGATED CO-COMMISSIONING,GLEADLESS MEDICAL CENTRE,33487981,"1,315.26",PARTIP,S14 1PQ
Department of Health,NHS Sheffield CCG,8/31/2020,C&M-PMS PCO Other,PRC DELEGATED CO-COMMISSIONING,GLEADLESS MEDICAL CENTRE,33487981,559.20,CQCRP,S14 1PQ
Department of Health,NHS Sheffield CCG,8/31/2020,C&M-PMS Prem Notional Rent,PRC DELEGATED CO-COMMISSIONING,GLEADLESS MEDICAL CENTRE,33487981,"6,750.00",NRENT,S14 1PQ
Department of Health,NHS Sheffield CCG,8/31/2020,C&M-PMS Prem Rates,PRC DELEGATED CO-COMMISSIONING,GLEADLESS MEDICAL CENTRE,33487981,"1,684.00",RANDRP,S14 1PQ
Department of Health,NHS Sheffield CCG,8/31/2020,C&M-PMS QOF Aspiration,PRC DELEGATED CO-COMMISSIONING,GLEADLESS MEDICAL CENTRE,33487981,"9,171.28",QUASPP,S14 1PQ
Department of Health,NHS Sheffield CCG,8/31/2020,C&M-PMS Contract Value,PRC DELEGATED CO-COMMISSIONING,HACKENTHORPE MEDICAL CENTRE,33487983,"49,400.20",BABALP,S12 4LA
Department of Health,NHS Sheffield CCG,8/31/2020,C&M-PMS Funding Differential Review,PRC DELEGATED CO-COMMISSIONING,HACKENTHORPE MEDICAL CENTRE,33487983,881.57,ZFUNFP,S12 4LA
Department of Health,NHS Sheffield CCG,8/31/2020,C&M-PMS PCN DES Participation,PRC DELEGATED CO-COMMISSIONING,HACKENTHORPE MEDICAL CENTRE,33487983,925.92,PARTIP,S12 4LA
Department of Health,NHS Sheffield CCG,8/31/2020,C&M-PMS PCO Other,PRC DELEGATED CO-COMMISSIONING,HACKENTHORPE MEDICAL CENTRE,33487983,435.70,CQCRP,S12 4LA
Department of Health,NHS Sheffield CCG,8/31/2020,C&M-PMS Prem Notional Rent,PRC DELEGATED CO-COMMISSIONING,HACKENTHORPE MEDICAL CENTRE,33487983,"5,116.67",NRENT,S12 4LA
Department of Health,NHS Sheffield CCG,8/31/2020,C&M-PMS Prem Rates,PRC DELEGATED CO-COMMISSIONING,HACKENTHORPE MEDICAL CENTRE,33487983,"1,385.00",RANDRP,S12 4LA
Department of Health,NHS Sheffield CCG,8/31/2020,C&M-PMS Prem Water Rates,PRC DELEGATED CO-COMMISSIONING,HACKENTHORPE MEDICAL CENTRE,33487983,80.64,RAMWP,S12 4LA
Department of Health,NHS Sheffield CCG,8/31/2020,C&M-PMS QOF Aspiration,PRC DELEGATED CO-COMMISSIONING,HACKENTHORPE MEDICAL CENTRE,33487983,"6,841.26",QUASPP,S12 4LA
Department of Health,NHS Sheffield CCG,8/31/2020,C&M-PCN DES Support Payment,PRC DELEGATED CO-COMMISSIONING,JAUNTY SPRINGS HEALTH CENTRE,33487985,"1,639.52",SUPPPP,S12 3DZ
Department of Health,NHS Sheffield CCG,8/31/2020,C&M-PMS Contract Value,PRC DELEGATED CO-COMMISSIONING,JAUNTY SPRINGS HEALTH CENTRE,33487985,"31,488.51",BABALP,S12 3DZ
Department of Health,NHS Sheffield CCG,8/31/2020,C&M-PMS DES Extended Hours Access,PRC DELEGATED CO-COMMISSIONING,JAUNTY SPRINGS HEALTH CENTRE,33487985,"4,214.06",EXTHDP,S12 3DZ
Department of Health,NHS Sheffield CCG,8/31/2020,C&M-PMS Funding Differential Review,PRC DELEGATED CO-COMMISSIONING,JAUNTY SPRINGS HEALTH CENTRE,33487985,600.45,ZFUNFP,S12 3DZ
Department of Health,NHS Sheffield CCG,8/31/2020,C&M-PMS Out of Hours Opt Outs,PRC DELEGATED CO-COMMISSIONING,JAUNTY SPRINGS HEALTH CENTRE,33487985,5.07,APMOOH,S12 3DZ
Department of Health,NHS Sheffield CCG,8/31/2020,C&M-PMS PCN DES Clinical Director,PRC DELEGATED CO-COMMISSIONING,JAUNTY SPRINGS HEALTH CENTRE,33487985,"2,098.31",CLINDP,S12 3DZ
Department of Health,NHS Sheffield CCG,8/31/2020,C&M-PMS PCN DES PCN support,LOCAL ENHANCED SERVICES,JAUNTY SPRINGS HEALTH CENTRE,33487985,"4,359.38",PCNSUP,S12 3DZ
Department of Health,NHS Sheffield CCG,8/31/2020,C&M-PMS PCN DES Participation,PRC DELEGATED CO-COMMISSIONING,JAUNTY SPRINGS HEALTH CENTRE,33487985,592.79,PARTIP,S12 3DZ
Department of Health,NHS Sheffield CCG,8/31/2020,C&M-PMS PCO Other,PRC DELEGATED CO-COMMISSIONING,JAUNTY SPRINGS HEALTH CENTRE,33487985,266.60,CQCRP,S12 3DZ
Department of Health,NHS Sheffield CCG,8/31/2020,C&M-PMS Prem Notional Rent,PRC DELEGATED CO-COMMISSIONING,JAUNTY SPRINGS HEALTH CENTRE,33487985,"3,208.33",NRENT,S12 3DZ
Department of Health,NHS Sheffield CCG,8/31/2020,C&M-PMS Prem Rates,PRC DELEGATED CO-COMMISSIONING,JAUNTY SPRINGS HEALTH CENTRE,33487985,830.00,RANDRP,S12 3DZ
Department of Health,NHS Sheffield CCG,8/31/2020,C&M-PMS Prem Water Rates,PRC DELEGATED CO-COMMISSIONING,JAUNTY SPRINGS HEALTH CENTRE,33487985,68.85,RAMWP,S12 3DZ
Department of Health,NHS Sheffield CCG,8/31/2020,C&M-PMS QOF Aspiration,PRC DELEGATED CO-COMMISSIONING,JAUNTY SPRINGS HEALTH CENTRE,33487985,"5,413.74",QUASPP,S12 3DZ
Department of Health,NHS Sheffield CCG,8/31/2020,C&M-PMS Contract Value,PRC DELEGATED CO-COMMISSIONING,MEADOWHEAD GROUP PRACTICE,33487986,"129,508.02",BABALP,S8 7RL
Department of Health,NHS Sheffield CCG,8/31/2020,C&M-PMS DES Learn Dsblty Hlth Chk,PRC DELEGATED CO-COMMISSIONING,MEADOWHEAD GROUP PRACTICE,33487986,"1,820.00",LEARNP,S8 7RL
Department of Health,NHS Sheffield CCG,8/31/2020,C&M-PMS Funding Differential Review,PRC DELEGATED CO-COMMISSIONING,MEADOWHEAD GROUP PRACTICE,33487986,"2,003.74",ZFUNFP,S8 7RL
Department of Health,NHS Sheffield CCG,8/31/2020,C&M-PMS Out of Hours Opt Outs,PRC DELEGATED CO-COMMISSIONING,MEADOWHEAD GROUP PRACTICE,33487986,31.09,APMOOH,S8 7RL
Department of Health,NHS Sheffield CCG,8/31/2020,C&M-PMS PCN DES Participation,PRC DELEGATED CO-COMMISSIONING,MEADOWHEAD GROUP PRACTICE,33487986,"2,434.20",PARTIP,S8 7RL
Department of Health,NHS Sheffield CCG,8/31/2020,C&M-PMS PCO Locum Adop/Pat/Mat,PRC DELEGATED CO-COMMISSIONING,MEADOWHEAD GROUP PRACTICE,33487986,"4,392.67",SICKC,S8 7RL
Department of Health,NHS Sheffield CCG,8/31/2020,C&M-PMS PCO Other,PRC DELEGATED CO-COMMISSIONING,MEADOWHEAD GROUP PRACTICE,33487986,456.10,CQCRP,S8 7RL
Department of Health,NHS Sheffield CCG,8/31/2020,C&M-PMS Prem Cost Rent,PRC DELEGATED CO-COMMISSIONING,MEADOWHEAD GROUP PRACTICE,33487986,"3,647.42",COST,S8 7RL
Department of Health,NHS Sheffield CCG,8/31/2020,C&M-PMS Prem Healthcentre Rent,PRC DELEGATED CO-COMMISSIONING,MEADOWHEAD GROUP PRACTICE,33487986,"41,665.03",HEALTH,S8 7RL
Department of Health,NHS Sheffield CCG,8/31/2020,C&M-PMS Prem Notional Rent,PRC DELEGATED CO-COMMISSIONING,MEADOWHEAD GROUP PRACTICE,33487986,"8,905.00",NRENT,S8 7RL
Department of Health,NHS Sheffield CCG,8/31/2020,C&M-PMS Prem Rates,PRC DELEGATED CO-COMMISSIONING,MEADOWHEAD GROUP PRACTICE,33487986,"3,253.00",RANDRP,S8 7RL
Department of Health,NHS Sheffield CCG,8/31/2020,C&M-PMS Prem Water Rates,PRC DELEGATED CO-COMMISSIONING,MEADOWHEAD GROUP PRACTICE,33487986,143.16,RAMWP,S8 7RL
Department of Health,NHS Sheffield CCG,8/31/2020,C&M-PMS QOF Aspiration,PRC DELEGATED CO-COMMISSIONING,MEADOWHEAD GROUP PRACTICE,33487986,"20,422.52",QUASPP,S8 7RL
Department of Health,NHS Sheffield CCG,8/31/2020,C&M-PMS Contract Value,PRC DELEGATED CO-COMMISSIONING,MANCHESTER ROAD SURGERY SHEFFIELD,33487988,"33,591.28",BABALP,S10 5PN
Department of Health,NHS Sheffield CCG,8/31/2020,C&M-PMS Funding Differential Review,PRC DELEGATED CO-COMMISSIONING,MANCHESTER ROAD SURGERY SHEFFIELD,33487988,604.16,ZFUNFP,S10 5PN
Department of Health,NHS Sheffield CCG,8/31/2020,C&M-PMS Out of Hours Opt Outs,PRC DELEGATED CO-COMMISSIONING,MANCHESTER ROAD SURGERY SHEFFIELD,33487988,4.42,APMOOH,S10 5PN
Department of Health,NHS Sheffield CCG,8/31/2020,C&M-PMS PCN DES Participation,PRC DELEGATED CO-COMMISSIONING,MANCHESTER ROAD SURGERY SHEFFIELD,33487988,631.34,PARTIP,S10 5PN
Department of Health,NHS Sheffield CCG,8/31/2020,C&M-PMS Prem Cost Rent,PRC DELEGATED CO-COMMISSIONING,MANCHESTER ROAD SURGERY SHEFFIELD,33487988,"3,091.46",COST,S10 5PN
Department of Health,NHS Sheffield CCG,8/31/2020,C&M-PMS Prem Notional Rent,PRC DELEGATED CO-COMMISSIONING,MANCHESTER ROAD SURGERY SHEFFIELD,33487988,442.92,NRENT,S10 5PN
Department of Health,NHS Sheffield CCG,8/31/2020,C&M-PMS Prem Rates,PRC DELEGATED CO-COMMISSIONING,MANCHESTER ROAD SURGERY SHEFFIELD,33487988,986.00,RANDRP,S10 5PN
Department of Health,NHS Sheffield CCG,8/31/2020,C&M-PMS QOF Aspiration,PRC DELEGATED CO-COMMISSIONING,MANCHESTER ROAD SURGERY SHEFFIELD,33487988,"4,671.76",QUASPP,S10 5PN
Department of Health,NHS Sheffield CCG,8/31/2020,C&M-PMS Contract Value,PRC DELEGATED CO-COMMISSIONING,MOSBOROUGH HEALTH CENTRE,33487990,"51,190.06",BABALP,S20 5BQ
Department of Health,NHS Sheffield CCG,8/31/2020,C&M-PMS Funding Differential Review,PRC DELEGATED CO-COMMISSIONING,MOSBOROUGH HEALTH CENTRE,33487990,891.89,ZFUNFP,S20 5BQ
Department of Health,NHS Sheffield CCG,8/31/2020,C&M-PMS PCN DES Participation,PRC DELEGATED CO-COMMISSIONING,MOSBOROUGH HEALTH CENTRE,33487990,955.17,PARTIP,S20 5BQ
Department of Health,NHS Sheffield CCG,8/31/2020,C&M-PMS Prem Notional Rent,PRC DELEGATED CO-COMMISSIONING,MOSBOROUGH HEALTH CENTRE,33487990,"4,091.67",NRENT,S20 5BQ
Department of Health,NHS Sheffield CCG,8/31/2020,C&M-PMS Prem Rates,PRC DELEGATED CO-COMMISSIONING,MOSBOROUGH HEALTH CENTRE,33487990,"1,604.00",RANDRP,S20 5BQ
Department of Health,NHS Sheffield CCG,8/31/2020,C&M-PMS Prem Water Rates,PRC DELEGATED CO-COMMISSIONING,MOSBOROUGH HEALTH CENTRE,33487990,201.70,RAMWP,S20 5BQ
Department of Health,NHS Sheffield CCG,8/31/2020,C&M-PMS QOF Aspiration,PRC DELEGATED CO-COMMISSIONING,MOSBOROUGH HEALTH CENTRE,33487990,"6,302.34",QUASPP,S20 5BQ
Department of Health,NHS Sheffield CCG,8/31/2020,C&M-PMS Contract Value,PRC DELEGATED CO-COMMISSIONING,NETHERGREEN SURGERY,33487992,"64,047.22",BABALP,S11 7EJ
Department of Health,NHS Sheffield CCG,8/31/2020,C&M-PMS Funding Differential Review,PRC DELEGATED CO-COMMISSIONING,NETHERGREEN SURGERY,33487992,"1,369.87",ZFUNFP,S11 7EJ
Department of Health,NHS Sheffield CCG,8/31/2020,C&M-PMS Out of Hours Opt Outs,PRC DELEGATED CO-COMMISSIONING,NETHERGREEN SURGERY,33487992,2.61,APMOOH,S11 7EJ
Department of Health,NHS Sheffield CCG,8/31/2020,C&M-PMS PCN DES Participation,PRC DELEGATED CO-COMMISSIONING,NETHERGREEN SURGERY,33487992,"1,201.24",PARTIP,S11 7EJ
Department of Health,NHS Sheffield CCG,8/31/2020,C&M-PMS PCO Locum Adop/Pat/Mat,PRC DELEGATED CO-COMMISSIONING,NETHERGREEN SURGERY,33487992,"2,135.52",SICKC,S11 7EJ
Department of Health,NHS Sheffield CCG,8/31/2020,C&M-PMS Prem Cost Rent,PRC DELEGATED CO-COMMISSIONING,NETHERGREEN SURGERY,33487992,"5,057.33",COST,S11 7EJ
Department of Health,NHS Sheffield CCG,8/31/2020,C&M-PMS Prem Rates,PRC DELEGATED CO-COMMISSIONING,NETHERGREEN SURGERY,33487992,"1,285.00",RANDRP,S11 7EJ
Department of Health,NHS Sheffield CCG,8/31/2020,C&M-PMS QOF Aspiration,PRC DELEGATED CO-COMMISSIONING,NETHERGREEN SURGERY,33487992,"8,621.14",QUASPP,S11 7EJ
Department of Health,NHS Sheffield CCG,8/31/2020,C&M-PMS Contract Value,PRC DELEGATED CO-COMMISSIONING,OWLTHORPE MEDICAL CENTRE,33487994,"33,655.56",BABALP,S20 6PD
Department of Health,NHS Sheffield CCG,8/31/2020,C&M-PMS Funding Differential Review,PRC DELEGATED CO-COMMISSIONING,OWLTHORPE MEDICAL CENTRE,33487994,280.01,ZFUNFP,S20 6PD
Department of Health,NHS Sheffield CCG,8/31/2020,C&M-PMS Out of Hours Opt Outs,PRC DELEGATED CO-COMMISSIONING,OWLTHORPE MEDICAL CENTRE,33487994,2.82,APMOOH,S20 6PD
Department of Health,NHS Sheffield CCG,8/31/2020,C&M-PMS PCN DES Participation,PRC DELEGATED CO-COMMISSIONING,OWLTHORPE MEDICAL CENTRE,33487994,633.33,PARTIP,S20 6PD
Department of Health,NHS Sheffield CCG,8/31/2020,C&M-PMS PCO Other,PRC DELEGATED CO-COMMISSIONING,OWLTHORPE MEDICAL CENTRE,33487994,305.40,CQCRP,S20 6PD
Department of Health,NHS Sheffield CCG,8/31/2020,C&M-PMS Prem Actual Rent,PRC DELEGATED CO-COMMISSIONING,OWLTHORPE MEDICAL CENTRE,33487994,"7,539.58",RENT,S20 6PD
Department of Health,NHS Sheffield CCG,8/31/2020,C&M-PMS Prem Water Rates,PRC DELEGATED CO-COMMISSIONING,OWLTHORPE MEDICAL CENTRE,33487994,121.64,RAMWP,S20 6PD
Department of Health,NHS Sheffield CCG,8/31/2020,C&M-PMS QOF Aspiration,PRC DELEGATED CO-COMMISSIONING,OWLTHORPE MEDICAL CENTRE,33487994,"3,728.91",QUASPP,S20 6PD
Department of Health,NHS Sheffield CCG,8/31/2020,C&M-PMS Contract Value,PRC DELEGATED CO-COMMISSIONING,PAGE HALL MEDICAL CENTRE,33487996,"58,569.29",BABALP,S4 8GB
Department of Health,NHS Sheffield CCG,8/31/2020,C&M-PMS DES Learn Dsblty Hlth Chk,PRC DELEGATED CO-COMMISSIONING,PAGE HALL MEDICAL CENTRE,33487996,980.00,LEARNP,S4 8GB
Department of Health,NHS Sheffield CCG,8/31/2020,C&M-PMS Funding Differential Review,PRC DELEGATED CO-COMMISSIONING,PAGE HALL MEDICAL CENTRE,33487996,"1,161.37",ZFUNFP,S4 8GB
Department of Health,NHS Sheffield CCG,8/31/2020,C&M-PMS PCN DES Participation,PRC DELEGATED CO-COMMISSIONING,PAGE HALL MEDICAL CENTRE,33487996,"1,096.18",PARTIP,S4 8GB
Department of Health,NHS Sheffield CCG,8/31/2020,C&M-PMS PCO Other,PRC DELEGATED CO-COMMISSIONING,PAGE HALL MEDICAL CENTRE,33487996,502.90,CQCRP,S4 8GB
Department of Health,NHS Sheffield CCG,8/31/2020,C&M-PMS Prem Notional Rent,PRC DELEGATED CO-COMMISSIONING,PAGE HALL MEDICAL CENTRE,33487996,"4,833.33",NRENT,S4 8GB
Department of Health,NHS Sheffield CCG,8/31/2020,C&M-PMS Prem Rates,PRC DELEGATED CO-COMMISSIONING,PAGE HALL MEDICAL CENTRE,33487996,"1,285.00",RANDRP,S4 8GB
Department of Health,NHS Sheffield CCG,8/31/2020,C&M-PMS QOF Aspiration,PRC DELEGATED CO-COMMISSIONING,PAGE HALL MEDICAL CENTRE,33487996,"7,238.11",QUASPP,S4 8GB
Department of Health,NHS Sheffield CCG,8/31/2020,C&M-PMS Contract Value,PRC DELEGATED CO-COMMISSIONING,PORTER BROOK MEDICAL CENTRE,33487998,"169,776.61",BABALP,S11 8HN
Department of Health,NHS Sheffield CCG,8/31/2020,C&M-PMS Funding Differential Review,PRC DELEGATED CO-COMMISSIONING,PORTER BROOK MEDICAL CENTRE,33487998,"3,636.27",ZFUNFP,S11 8HN
Department of Health,NHS Sheffield CCG,8/31/2020,C&M-PMS Out of Hours Opt Outs,PRC DELEGATED CO-COMMISSIONING,PORTER BROOK MEDICAL CENTRE,33487998,68.82,APMOOH,S11 8HN
Department of Health,NHS Sheffield CCG,8/31/2020,C&M-PMS PCN DES Participation,PRC DELEGATED CO-COMMISSIONING,PORTER BROOK MEDICAL CENTRE,33487998,"3,182.41",PARTIP,S11 8HN
Department of Health,NHS Sheffield CCG,8/31/2020,C&M-PMS Prem Actual Rent,PRC DELEGATED CO-COMMISSIONING,PORTER BROOK MEDICAL CENTRE,33487998,"1,666.67",RENT,S11 8HN
Department of Health,NHS Sheffield CCG,8/31/2020,C&M-PMS Prem Notional Rent,PRC DELEGATED CO-COMMISSIONING,PORTER BROOK MEDICAL CENTRE,33487998,"9,666.67",NRENT,S11 8HN
Department of Health,NHS Sheffield CCG,8/31/2020,C&M-PMS Prem Rates,PRC DELEGATED CO-COMMISSIONING,PORTER BROOK MEDICAL CENTRE,33487998,"2,658.00",RANDRP,S11 8HN
Department of Health,NHS Sheffield CCG,8/31/2020,C&M-PMS QOF Aspiration,PRC DELEGATED CO-COMMISSIONING,PORTER BROOK MEDICAL CENTRE,33487998,"10,115.59",QUASPP,S11 8HN
Department of Health,NHS Sheffield CCG,8/31/2020,C&M-PMS Contract Value,PRC DELEGATED CO-COMMISSIONING,RICHMOND MEDICAL CENTRE,33488000,"68,407.00",BABALP,S13 8NA
Department of Health,NHS Sheffield CCG,8/31/2020,C&M-PMS DES Learn Dsblty Hlth Chk,PRC DELEGATED CO-COMMISSIONING,RICHMOND MEDICAL CENTRE,33488000,280.00,LEARNP,S13 8NA
Department of Health,NHS Sheffield CCG,8/31/2020,C&M-PMS Funding Differential Review,PRC DELEGATED CO-COMMISSIONING,RICHMOND MEDICAL CENTRE,33488000,"1,009.63",ZFUNFP,S13 8NA
Department of Health,NHS Sheffield CCG,8/31/2020,C&M-PMS PCN DES Participation,PRC DELEGATED CO-COMMISSIONING,RICHMOND MEDICAL CENTRE,33488000,"1,278.48",PARTIP,S13 8NA
Department of Health,NHS Sheffield CCG,8/31/2020,C&M-PMS PCO Other,PRC DELEGATED CO-COMMISSIONING,RICHMOND MEDICAL CENTRE,33488000,566.10,CQCRP,S13 8NA
Department of Health,NHS Sheffield CCG,8/31/2020,C&M-PMS Prem Notional Rent,PRC DELEGATED CO-COMMISSIONING,RICHMOND MEDICAL CENTRE,33488000,"4,731.00",NRENT,S13 8NA
Department of Health,NHS Sheffield CCG,8/31/2020,C&M-PMS Prem Rates,PRC DELEGATED CO-COMMISSIONING,RICHMOND MEDICAL CENTRE,33488000,"1,509.00",RANDRP,S13 8NA
Department of Health,NHS Sheffield CCG,8/31/2020,C&M-PMS QOF Aspiration,PRC DELEGATED CO-COMMISSIONING,RICHMOND MEDICAL CENTRE,33488000,"9,716.11",QUASPP,S13 8NA
Department of Health,NHS Sheffield CCG,8/31/2020,C&M-PMS Contract Value,PRC DELEGATED CO-COMMISSIONING,SELBORNE ROAD MEDICAL CENTRE,33488002,"19,633.09",BABALP,S10 5ND
Department of Health,NHS Sheffield CCG,8/31/2020,C&M-PMS Funding Differential Review,PRC DELEGATED CO-COMMISSIONING,SELBORNE ROAD MEDICAL CENTRE,33488002,478.42,ZFUNFP,S10 5ND
Department of Health,NHS Sheffield CCG,8/31/2020,C&M-PMS PCN DES Participation,PRC DELEGATED CO-COMMISSIONING,SELBORNE ROAD MEDICAL CENTRE,33488002,365.84,PARTIP,S10 5ND
Department of Health,NHS Sheffield CCG,8/31/2020,C&M-PMS PCO Other,PRC DELEGATED CO-COMMISSIONING,SELBORNE ROAD MEDICAL CENTRE,33488002,407.60,CQCRP,S10 5ND
Department of Health,NHS Sheffield CCG,8/31/2020,C&M-PMS Prem Notional Rent,PRC DELEGATED CO-COMMISSIONING,SELBORNE ROAD MEDICAL CENTRE,33488002,"1,735.42",NRENT,S10 5ND
Department of Health,NHS Sheffield CCG,8/31/2020,C&M-PMS Prem Rates,PRC DELEGATED CO-COMMISSIONING,SELBORNE ROAD MEDICAL CENTRE,33488002,611.00,RANDRP,S10 5ND
Department of Health,NHS Sheffield CCG,8/31/2020,C&M-PMS QOF Aspiration,PRC DELEGATED CO-COMMISSIONING,SELBORNE ROAD MEDICAL CENTRE,33488002,"2,510.50",QUASPP,S10 5ND
Department of Health,NHS Sheffield CCG,8/31/2020,C&M-PMS Contract Value,PRC DELEGATED CO-COMMISSIONING,RUSTLINGS ROAD MEDICAL CENTRE,33488004,"28,963.43",BABALP,S11 7AB
Department of Health,NHS Sheffield CCG,8/31/2020,C&M-PMS Funding Differential Review,PRC DELEGATED CO-COMMISSIONING,RUSTLINGS ROAD MEDICAL CENTRE,33488004,565.04,ZFUNFP,S11 7AB
Department of Health,NHS Sheffield CCG,8/31/2020,C&M-PMS PCN DES Participation,PRC DELEGATED CO-COMMISSIONING,RUSTLINGS ROAD MEDICAL CENTRE,33488004,536.04,PARTIP,S11 7AB
Department of Health,NHS Sheffield CCG,8/31/2020,C&M-PMS PCO Other,PRC DELEGATED CO-COMMISSIONING,RUSTLINGS ROAD MEDICAL CENTRE,33488004,316.40,CQCRP,S11 7AB
Department of Health,NHS Sheffield CCG,8/31/2020,C&M-PMS Prem Notional Rent,PRC DELEGATED CO-COMMISSIONING,RUSTLINGS ROAD MEDICAL CENTRE,33488004,"1,312.50",NRENT,S11 7AB
Department of Health,NHS Sheffield CCG,8/31/2020,C&M-PMS QOF Aspiration,PRC DELEGATED CO-COMMISSIONING,RUSTLINGS ROAD MEDICAL CENTRE,33488004,"2,857.73",QUASPP,S11 7AB
Department of Health,NHS Sheffield CCG,8/31/2020,C&M-PMS Contract Value,PRC DELEGATED CO-COMMISSIONING,SLOAN MEDICAL CENTRE,33488006,"97,519.79",BABALP,S8 0YH
Department of Health,NHS Sheffield CCG,8/31/2020,C&M-PMS Funding Differential Review,PRC DELEGATED CO-COMMISSIONING,SLOAN MEDICAL CENTRE,33488006,"1,677.40",ZFUNFP,S8 0YH
Department of Health,NHS Sheffield CCG,8/31/2020,C&M-PMS PCN DES Participation,PRC DELEGATED CO-COMMISSIONING,SLOAN MEDICAL CENTRE,33488006,"1,829.77",PARTIP,S8 0YH
Department of Health,NHS Sheffield CCG,8/31/2020,C&M-PMS PCO Locum Adop/Pat/Mat,PRC DELEGATED CO-COMMISSIONING,SLOAN MEDICAL CENTRE,33488006,"22,890.69",SICKC,S8 0YH
Department of Health,NHS Sheffield CCG,8/31/2020,C&M-PMS Prem Actual Rent,PRC DELEGATED CO-COMMISSIONING,SLOAN MEDICAL CENTRE,33488006,"15,970.83",RENT,S8 0YH
Department of Health,NHS Sheffield CCG,8/31/2020,C&M-PMS Prem Notional Rent,PRC DELEGATED CO-COMMISSIONING,SLOAN MEDICAL CENTRE,33488006,747.50,NRENT,S8 0YH
Department of Health,NHS Sheffield CCG,8/31/2020,C&M-PMS Prem Rates,PRC DELEGATED CO-COMMISSIONING,SLOAN MEDICAL CENTRE,33488006,"3,478.00",RANDRP,S8 0YH
Department of Health,NHS Sheffield CCG,8/31/2020,C&M-PMS QOF Aspiration,PRC DELEGATED CO-COMMISSIONING,SLOAN MEDICAL CENTRE,33488006,"9,977.55",QUASPP,S8 0YH
Department of Health,NHS Sheffield CCG,8/31/2020,C&M-PMS Contract Value,PRC DELEGATED CO-COMMISSIONING,SOTHALL MEDICAL CENTRE,33488008,"72,058.21",BABALP,S20 1HQ
Department of Health,NHS Sheffield CCG,8/31/2020,C&M-PMS Funding Differential Review,PRC DELEGATED CO-COMMISSIONING,SOTHALL MEDICAL CENTRE,33488008,"1,401.44",ZFUNFP,S20 1HQ
Department of Health,NHS Sheffield CCG,8/31/2020,C&M-PMS PCN DES Participation,PRC DELEGATED CO-COMMISSIONING,SOTHALL MEDICAL CENTRE,33488008,"1,354.16",PARTIP,S20 1HQ
Department of Health,NHS Sheffield CCG,8/31/2020,C&M-PMS Prem Notional Rent,PRC DELEGATED CO-COMMISSIONING,SOTHALL MEDICAL CENTRE,33488008,"5,116.67",NRENT,S20 1HQ
Department of Health,NHS Sheffield CCG,8/31/2020,C&M-PMS Prem Rates,PRC DELEGATED CO-COMMISSIONING,SOTHALL MEDICAL CENTRE,33488008,"1,435.00",RANDRP,S20 1HQ
Department of Health,NHS Sheffield CCG,8/31/2020,C&M-PMS Prem Water Rates,PRC DELEGATED CO-COMMISSIONING,SOTHALL MEDICAL CENTRE,33488008,93.82,RAMWP,S20 1HQ
Department of Health,NHS Sheffield CCG,8/31/2020,C&M-PMS QOF Aspiration,PRC DELEGATED CO-COMMISSIONING,SOTHALL MEDICAL CENTRE,33488008,"8,491.33",QUASPP,S20 1HQ
Department of Health,NHS Sheffield CCG,8/31/2020,C&M-PMS Contract Value,PRC DELEGATED CO-COMMISSIONING,SOUTHEY GREEN MEDICAL CENTRE,33488010,"25,424.03",BABALP,S5 7QB
Department of Health,NHS Sheffield CCG,8/31/2020,C&M-PMS Funding Differential Review,PRC DELEGATED CO-COMMISSIONING,SOUTHEY GREEN MEDICAL CENTRE,33488010,612.28,ZFUNFP,S5 7QB
Department of Health,NHS Sheffield CCG,8/31/2020,C&M-PMS PCN DES Participation,PRC DELEGATED CO-COMMISSIONING,SOUTHEY GREEN MEDICAL CENTRE,33488010,475.95,PARTIP,S5 7QB
Department of Health,NHS Sheffield CCG,8/31/2020,C&M-PMS Prem Notional Rent,PRC DELEGATED CO-COMMISSIONING,SOUTHEY GREEN MEDICAL CENTRE,33488010,"3,362.50",NRENT,S5 7QB
Department of Health,NHS Sheffield CCG,8/31/2020,C&M-PMS Prem Rates,PRC DELEGATED CO-COMMISSIONING,SOUTHEY GREEN MEDICAL CENTRE,33488010,"1,198.00",RANDRP,S5 7QB
Department of Health,NHS Sheffield CCG,8/31/2020,C&M-PMS QOF Aspiration,PRC DELEGATED CO-COMMISSIONING,SOUTHEY GREEN MEDICAL CENTRE,33488010,"2,858.87",QUASPP,S5 7QB
Department of Health,NHS Sheffield CCG,8/31/2020,C&M-PCN DES Support Payment,PRC DELEGATED CO-COMMISSIONING,UNIVERSITY HEALTH SERVICE,33488014,"1,187.06",SUPPPP,S3 7QP
Department of Health,NHS Sheffield CCG,8/31/2020,C&M-PMS Contract Value,PRC DELEGATED CO-COMMISSIONING,UNIVERSITY HEALTH SERVICE,33488014,"205,419.18",BABALP,S3 7QP
Department of Health,NHS Sheffield CCG,8/31/2020,C&M-PMS DES Extended Hours Access,PRC DELEGATED CO-COMMISSIONING,UNIVERSITY HEALTH SERVICE,33488014,"4,929.28",EXTHDP,S3 7QP
Department of Health,NHS Sheffield CCG,8/31/2020,C&M-PMS Out of Hours Opt Outs,PRC DELEGATED CO-COMMISSIONING,UNIVERSITY HEALTH SERVICE,33488014,306.80,APMOOH,S3 7QP
Department of Health,NHS Sheffield CCG,8/31/2020,C&M-PMS PCN DES Clinical Director,PRC DELEGATED CO-COMMISSIONING,UNIVERSITY HEALTH SERVICE,33488014,"2,454.44",CLINDP,S3 7QP
Department of Health,NHS Sheffield CCG,8/31/2020,C&M-PMS PCN DES PCN support,LOCAL ENHANCED SERVICES,UNIVERSITY HEALTH SERVICE,33488014,"5,099.25",PCNSUP,S3 7QP
Department of Health,NHS Sheffield CCG,8/31/2020,C&M-PMS PCN DES Participation,PRC DELEGATED CO-COMMISSIONING,UNIVERSITY HEALTH SERVICE,33488014,"3,871.12",PARTIP,S3 7QP
Department of Health,NHS Sheffield CCG,8/31/2020,C&M-PMS Prem Notional Rent,PRC DELEGATED CO-COMMISSIONING,UNIVERSITY HEALTH SERVICE,33488014,"15,833.33",NRENT,S3 7QP
Department of Health,NHS Sheffield CCG,8/31/2020,C&M-PMS QOF Aspiration,PRC DELEGATED CO-COMMISSIONING,UNIVERSITY HEALTH SERVICE,33488014,"7,529.34",QUASPP,S3 7QP
Department of Health,NHS Sheffield CCG,8/31/2020,C&M-PMS Contract Value,PRC DELEGATED CO-COMMISSIONING,UPWELL STREET SURGERY,33488016,"37,024.50",BABALP,S4 8AN
Department of Health,NHS Sheffield CCG,8/31/2020,C&M-PMS Funding Differential Review,PRC DELEGATED CO-COMMISSIONING,UPWELL STREET SURGERY,33488016,911.19,ZFUNFP,S4 8AN
Department of Health,NHS Sheffield CCG,8/31/2020,C&M-PMS PCN DES Participation,PRC DELEGATED CO-COMMISSIONING,UPWELL STREET SURGERY,33488016,687.31,PARTIP,S4 8AN
Department of Health,NHS Sheffield CCG,8/31/2020,C&M-PMS Prem Notional Rent,PRC DELEGATED CO-COMMISSIONING,UPWELL STREET SURGERY,33488016,"8,137.50",NRENT,S4 8AN
Department of Health,NHS Sheffield CCG,8/31/2020,C&M-PMS Prem Rates,PRC DELEGATED CO-COMMISSIONING,UPWELL STREET SURGERY,33488016,"1,362.00",RANDRP,S4 8AN
Department of Health,NHS Sheffield CCG,8/31/2020,C&M-PMS QOF Aspiration,PRC DELEGATED CO-COMMISSIONING,UPWELL STREET SURGERY,33488016,"4,697.95",QUASPP,S4 8AN
Department of Health,NHS Sheffield CCG,8/31/2020,C&M-PCN DES Support Payment,PRC DELEGATED CO-COMMISSIONING,VALLEY MEDICAL CENTRE,33488018,976.44,SUPPPP,S36 1BX
Department of Health,NHS Sheffield CCG,8/31/2020,C&M-PMS Contract Value,PRC DELEGATED CO-COMMISSIONING,VALLEY MEDICAL CENTRE,33488018,"79,935.71",BABALP,S36 1BX
Department of Health,NHS Sheffield CCG,8/31/2020,C&M-PMS DES Extended Hours Access,PRC DELEGATED CO-COMMISSIONING,VALLEY MEDICAL CENTRE,33488018,"2,507.53",EXTHDP,S36 1BX
Department of Health,NHS Sheffield CCG,8/31/2020,C&M-PMS Funding Differential Review,PRC DELEGATED CO-COMMISSIONING,VALLEY MEDICAL CENTRE,33488018,"1,519.02",ZFUNFP,S36 1BX
Department of Health,NHS Sheffield CCG,8/31/2020,C&M-PMS PCN DES Clinical Director,PRC DELEGATED CO-COMMISSIONING,VALLEY MEDICAL CENTRE,33488018,"1,248.58",CLINDP,S36 1BX
Department of Health,NHS Sheffield CCG,8/31/2020,C&M-PMS PCN DES PCN support,LOCAL ENHANCED SERVICES,VALLEY MEDICAL CENTRE,33488018,"2,594.00",PCNSUP,S36 1BX
Department of Health,NHS Sheffield CCG,8/31/2020,C&M-PMS PCN DES Participation,PRC DELEGATED CO-COMMISSIONING,VALLEY MEDICAL CENTRE,33488018,"1,502.00",PARTIP,S36 1BX
Department of Health,NHS Sheffield CCG,8/31/2020,C&M-PMS PCO Locum Adop/Pat/Mat,PRC DELEGATED CO-COMMISSIONING,VALLEY MEDICAL CENTRE,33488018,"4,220.00",SICKC,S36 1BX
Department of Health,NHS Sheffield CCG,8/31/2020,C&M-PMS Prem Rates,PRC DELEGATED CO-COMMISSIONING,VALLEY MEDICAL CENTRE,33488018,"1,784.00",RANDRP,S36 1BX
Department of Health,NHS Sheffield CCG,8/31/2020,C&M-PMS Prem Water Rates,PRC DELEGATED CO-COMMISSIONING,VALLEY MEDICAL CENTRE,33488018,299.14,RAMWP,S36 1BX
Department of Health,NHS Sheffield CCG,8/31/2020,C&M-PMS QOF Aspiration,PRC DELEGATED CO-COMMISSIONING,VALLEY MEDICAL CENTRE,33488018,"9,062.68",QUASPP,S36 1BX
Department of Health,NHS Sheffield CCG,8/31/2020,C&M-PMS Contract Value,PRC DELEGATED CO-COMMISSIONING,WOODHOUSE HEALTH CENTRE,33488019,"-1,111.35",BABALP,S13 7LY
Department of Health,NHS Sheffield CCG,8/31/2020,C&M-PMS GP Statutory Levy,PRC DELEGATED CO-COMMISSIONING,WOODHOUSE HEALTH CENTRE,33488019,-425.95,STATL,S13 7LY
Department of Health,NHS Sheffield CCG,8/31/2020,C&M-PMS Out of Hours Opt Outs,PRC DELEGATED CO-COMMISSIONING,WOODHOUSE HEALTH CENTRE,33488019,"-4,845.65",APMOOH,S13 7LY
Department of Health,NHS Sheffield CCG,8/31/2020,C&M-PMS Contract Value,PRC DELEGATED CO-COMMISSIONING,WOODHOUSE HEALTH CENTRE,33488020,"101,795.51",BABALP,S13 7LY
Department of Health,NHS Sheffield CCG,8/31/2020,C&M-PMS Funding Differential Review,PRC DELEGATED CO-COMMISSIONING,WOODHOUSE HEALTH CENTRE,33488020,"2,095.91",ZFUNFP,S13 7LY
Department of Health,NHS Sheffield CCG,8/31/2020,C&M-PMS Out of Hours Opt Outs,PRC DELEGATED CO-COMMISSIONING,WOODHOUSE HEALTH CENTRE,33488020,51.98,APMOOH,S13 7LY
Department of Health,NHS Sheffield CCG,8/31/2020,C&M-PMS PCN DES Participation,PRC DELEGATED CO-COMMISSIONING,WOODHOUSE HEALTH CENTRE,33488020,"1,913.91",PARTIP,S13 7LY
Department of Health,NHS Sheffield CCG,8/31/2020,C&M-PMS PCO Other,PRC DELEGATED CO-COMMISSIONING,WOODHOUSE HEALTH CENTRE,33488020,751.30,CQCRP,S13 7LY
Department of Health,NHS Sheffield CCG,8/31/2020,C&M-PMS Prem Notional Rent,PRC DELEGATED CO-COMMISSIONING,WOODHOUSE HEALTH CENTRE,33488020,"6,338.58",NRENT,S13 7LY
Department of Health,NHS Sheffield CCG,8/31/2020,C&M-PMS QOF Aspiration,PRC DELEGATED CO-COMMISSIONING,WOODHOUSE HEALTH CENTRE,33488020,"16,296.05",QUASPP,S13 7LY
Department of Health,NHS Sheffield CCG,8/31/2020,C&M-PMS Contract Value,PRC DELEGATED CO-COMMISSIONING,WINCOBANK MEDICAL CENTRE,33488022,"63,445.25",BABALP,S9 1DJ
Department of Health,NHS Sheffield CCG,8/31/2020,C&M-PMS Funding Differential Review,PRC DELEGATED CO-COMMISSIONING,WINCOBANK MEDICAL CENTRE,33488022,"1,151.96",ZFUNFP,S9 1DJ
Department of Health,NHS Sheffield CCG,8/31/2020,C&M-PMS Out of Hours Opt Outs,PRC DELEGATED CO-COMMISSIONING,WINCOBANK MEDICAL CENTRE,33488022,12.27,APMOOH,S9 1DJ
Department of Health,NHS Sheffield CCG,8/31/2020,C&M-PMS PCN DES Participation,PRC DELEGATED CO-COMMISSIONING,WINCOBANK MEDICAL CENTRE,33488022,"1,191.31",PARTIP,S9 1DJ
Department of Health,NHS Sheffield CCG,8/31/2020,C&M-PMS Prem Healthcentre Rent,PRC DELEGATED CO-COMMISSIONING,WINCOBANK MEDICAL CENTRE,33488022,"46,340.33",HEALTH,S9 1DJ
Department of Health,NHS Sheffield CCG,8/31/2020,C&M-PMS QOF Aspiration,PRC DELEGATED CO-COMMISSIONING,WINCOBANK MEDICAL CENTRE,33488022,"7,670.44",QUASPP,S9 1DJ
Department of Health,NHS Sheffield CCG,8/31/2020,C&M-PMS Contract Value,PRC DELEGATED CO-COMMISSIONING,FOXHILL MEDICAL CENTRE SHEFFIELD,33488024,"52,261.18",BABALP,S6 1GA
Department of Health,NHS Sheffield CCG,8/31/2020,C&M-PMS DES Learn Dsblty Hlth Chk,PRC DELEGATED CO-COMMISSIONING,FOXHILL MEDICAL CENTRE SHEFFIELD,33488024,"2,240.00",LEARNP,S6 1GA
Department of Health,NHS Sheffield CCG,8/31/2020,C&M-PMS Funding Differential Review,PRC DELEGATED CO-COMMISSIONING,FOXHILL MEDICAL CENTRE SHEFFIELD,33488024,"1,157.94",ZFUNFP,S6 1GA
Department of Health,NHS Sheffield CCG,8/31/2020,C&M-PMS Out of Hours Opt Outs,PRC DELEGATED CO-COMMISSIONING,FOXHILL MEDICAL CENTRE SHEFFIELD,33488024,13.00,APMOOH,S6 1GA
Department of Health,NHS Sheffield CCG,8/31/2020,C&M-PMS PCN DES Participation,PRC DELEGATED CO-COMMISSIONING,FOXHILL MEDICAL CENTRE SHEFFIELD,33488024,980.95,PARTIP,S6 1GA
Department of Health,NHS Sheffield CCG,8/31/2020,C&M-PMS PCO Locum Adop/Pat/Mat,PRC DELEGATED CO-COMMISSIONING,FOXHILL MEDICAL CENTRE SHEFFIELD,33488024,"14,012.16",SICKC,S6 1GA
Department of Health,NHS Sheffield CCG,8/31/2020,C&M-PMS PCO Other,PRC DELEGATED CO-COMMISSIONING,FOXHILL MEDICAL CENTRE SHEFFIELD,33488024,"2,002.50",CQCRP,S6 1GA
Department of Health,NHS Sheffield CCG,8/31/2020,C&M-PMS Prem Healthcentre Rent,PRC DELEGATED CO-COMMISSIONING,FOXHILL MEDICAL CENTRE SHEFFIELD,33488024,"47,880.58",HEALTH,S6 1GA
Department of Health,NHS Sheffield CCG,8/31/2020,C&M-PMS QOF Aspiration,PRC DELEGATED CO-COMMISSIONING,FOXHILL MEDICAL CENTRE SHEFFIELD,33488024,"6,509.12",QUASPP,S6 1GA
Department of Health,NHS Sheffield CCG,8/31/2020,C&M-PMS GP Statutory Levy,PRC DELEGATED CO-COMMISSIONING,FORGE HEALTH GROUP,33488025,-515.73,STATL,S3 9DL
Department of Health,NHS Sheffield CCG,8/31/2020,C&M-PMS Out of Hours Opt Outs,PRC DELEGATED CO-COMMISSIONING,FORGE HEALTH GROUP,33488025,"-5,849.43",APMOOH,S3 9DL
Department of Health,NHS Sheffield CCG,8/31/2020,C&M-PCN DES Support Payment,PRC DELEGATED CO-COMMISSIONING,FORGE HEALTH GROUP,33488026,"2,630.02",SUPPPP,S3 9DL
Department of Health,NHS Sheffield CCG,8/31/2020,C&M-PMS Contract Value,PRC DELEGATED CO-COMMISSIONING,FORGE HEALTH GROUP,33488026,"123,040.99",BABALP,S3 9DL
Department of Health,NHS Sheffield CCG,8/31/2020,C&M-PMS DES Extended Hours Access,PRC DELEGATED CO-COMMISSIONING,FORGE HEALTH GROUP,33488026,"6,849.44",EXTHDP,S3 9DL
Department of Health,NHS Sheffield CCG,8/31/2020,C&M-PMS Funding Differential Review,PRC DELEGATED CO-COMMISSIONING,FORGE HEALTH GROUP,33488026,"1,206.61",ZFUNFP,S3 9DL
Department of Health,NHS Sheffield CCG,8/31/2020,C&M-PMS PCN DES Clinical Director,PRC DELEGATED CO-COMMISSIONING,FORGE HEALTH GROUP,33488026,"3,410.55",CLINDP,S3 9DL
Department of Health,NHS Sheffield CCG,8/31/2020,C&M-PMS PCN DES PCN support,LOCAL ENHANCED SERVICES,FORGE HEALTH GROUP,33488026,"7,085.63",PCNSUP,S3 9DL
Department of Health,NHS Sheffield CCG,8/31/2020,C&M-PMS PCN DES Participation,PRC DELEGATED CO-COMMISSIONING,FORGE HEALTH GROUP,33488026,"2,286.18",PARTIP,S3 9DL
Department of Health,NHS Sheffield CCG,8/31/2020,C&M-PMS PCO Locum Adop/Pat/Mat,PRC DELEGATED CO-COMMISSIONING,FORGE HEALTH GROUP,33488026,"33,926.29",SICKC,S3 9DL
Department of Health,NHS Sheffield CCG,8/31/2020,C&M-PMS Prem Healthcentre Rent,PRC DELEGATED CO-COMMISSIONING,FORGE HEALTH GROUP,33488026,"35,472.33",HEALTH,S3 9DL
Department of Health,NHS Sheffield CCG,8/31/2020,C&M-PMS Prem Notional Rent,PRC DELEGATED CO-COMMISSIONING,FORGE HEALTH GROUP,33488026,"9,650.00",NRENT,S3 9DL
Department of Health,NHS Sheffield CCG,8/31/2020,C&M-PMS Prem Rates,PRC DELEGATED CO-COMMISSIONING,FORGE HEALTH GROUP,33488026,"2,370.00",RANDRP,S3 9DL
Department of Health,NHS Sheffield CCG,8/31/2020,C&M-PMS QOF Aspiration,PRC DELEGATED CO-COMMISSIONING,FORGE HEALTH GROUP,33488026,"11,197.01",QUASPP,S3 9DL
Department of Health,NHS Sheffield CCG,8/31/2020,C&M-APMS Contract Value,PRC DELEGATED CO-COMMISSIONING,CLOVER CITY PRACTICE,33488028,"30,667.03",APMADD,S9 4QH
Department of Health,NHS Sheffield CCG,8/31/2020,C&M-APMS PCN DES Participation,PRC DELEGATED CO-COMMISSIONING,CLOVER CITY PRACTICE,33488028,563.87,PARTIA,S9 4QH
Department of Health,NHS Sheffield CCG,8/31/2020,C&M-PMS QOF Aspiration,PRC DELEGATED CO-COMMISSIONING,CLOVER CITY PRACTICE,33488028,"1,589.35",QUASPP,S9 4QH
Department of Health,NHS Sheffield CCG,8/31/2020,C&M-PMS Contract Value,PRC DELEGATED CO-COMMISSIONING,WOODSEATS MEDICAL CENTRE,33499966,"80,727.83",BABALP,S8 0SH
Department of Health,NHS Sheffield CCG,8/31/2020,C&M-PMS DES Learn Dsblty Hlth Chk,PRC DELEGATED CO-COMMISSIONING,WOODSEATS MEDICAL CENTRE,33499966,140.00,LEARNP,S8 0SH
Department of Health,NHS Sheffield CCG,8/31/2020,C&M-PMS Funding Differential Review,PRC DELEGATED CO-COMMISSIONING,WOODSEATS MEDICAL CENTRE,33499966,"1,061.06",ZFUNFP,S8 0SH
Department of Health,NHS Sheffield CCG,8/31/2020,C&M-PMS PCN DES Participation,PRC DELEGATED CO-COMMISSIONING,WOODSEATS MEDICAL CENTRE,33499966,"1,504.80",PARTIP,S8 0SH
Department of Health,NHS Sheffield CCG,8/31/2020,C&M-PMS PCO Locum Adop/Pat/Mat,PRC DELEGATED CO-COMMISSIONING,WOODSEATS MEDICAL CENTRE,33499966,"9,834.69",SICKC,S8 0SH
Department of Health,NHS Sheffield CCG,8/31/2020,C&M-PMS PCO Other,PRC DELEGATED CO-COMMISSIONING,WOODSEATS MEDICAL CENTRE,33499966,645.70,CQCRP,S8 0SH
Department of Health,NHS Sheffield CCG,8/31/2020,C&M-PMS Prem Notional Rent,PRC DELEGATED CO-COMMISSIONING,WOODSEATS MEDICAL CENTRE,33499966,"11,666.67",NRENT,S8 0SH
Department of Health,NHS Sheffield CCG,8/31/2020,C&M-PMS Prem Rates,PRC DELEGATED CO-COMMISSIONING,WOODSEATS MEDICAL CENTRE,33499966,"3,149.00",RANDRP,S8 0SH
Department of Health,NHS Sheffield CCG,8/31/2020,C&M-PMS QOF Aspiration,PRC DELEGATED CO-COMMISSIONING,WOODSEATS MEDICAL CENTRE,33499966,"8,588.98",QUASPP,S8 0SH
Department of Health,NHS Sheffield CCG,8/31/2020,C&M-PMS Contract Value,PRC DELEGATED CO-COMMISSIONING,MANOR & PARK GROUP PRACTICE,33499968,"73,716.20",BABALP,S2 5QQ
Department of Health,NHS Sheffield CCG,8/31/2020,C&M-PMS DES Learn Dsblty Hlth Chk,PRC DELEGATED CO-COMMISSIONING,MANOR & PARK GROUP PRACTICE,33499968,420.00,LEARNP,S2 5QQ
Department of Health,NHS Sheffield CCG,8/31/2020,C&M-PMS PCN DES Participation,PRC DELEGATED CO-COMMISSIONING,MANOR & PARK GROUP PRACTICE,33499968,"1,387.49",PARTIP,S2 5QQ
Department of Health,NHS Sheffield CCG,8/31/2020,C&M-PMS Prem Notional Rent,PRC DELEGATED CO-COMMISSIONING,MANOR & PARK GROUP PRACTICE,33499968,"9,050.00",NRENT,S2 5QQ
Department of Health,NHS Sheffield CCG,8/31/2020,C&M-PMS Prem Rates,PRC DELEGATED CO-COMMISSIONING,MANOR & PARK GROUP PRACTICE,33499968,"1,864.00",RANDRP,S2 5QQ
Department of Health,NHS Sheffield CCG,8/31/2020,C&M-PMS QOF Aspiration,PRC DELEGATED CO-COMMISSIONING,MANOR & PARK GROUP PRACTICE,33499968,"12,852.75",QUASPP,S2 5QQ
Department of Health,NHS Sheffield CCG,8/31/2020,C&M-PMS Contract Value,PRC DELEGATED CO-COMMISSIONING,BURNGREAVE SURGERY,33509197,"58,071.43",BABALP,S3 9DA
Department of Health,NHS Sheffield CCG,8/31/2020,C&M-PMS DES Learn Dsblty Hlth Chk,PRC DELEGATED CO-COMMISSIONING,BURNGREAVE SURGERY,33509197,420.00,LEARNP,S3 9DA
Department of Health,NHS Sheffield CCG,8/31/2020,C&M-PMS Funding Differential Review,PRC DELEGATED CO-COMMISSIONING,BURNGREAVE SURGERY,33509197,"1,135.51",ZFUNFP,S3 9DA
Department of Health,NHS Sheffield CCG,8/31/2020,C&M-PMS Out of Hours Opt Outs,PRC DELEGATED CO-COMMISSIONING,BURNGREAVE SURGERY,33509197,8.35,APMOOH,S3 9DA
Department of Health,NHS Sheffield CCG,8/31/2020,C&M-PMS PCN DES Participation,PRC DELEGATED CO-COMMISSIONING,BURNGREAVE SURGERY,33509197,"1,090.16",PARTIP,S3 9DA
Department of Health,NHS Sheffield CCG,8/31/2020,C&M-PMS PCO Locum Adop/Pat/Mat,PRC DELEGATED CO-COMMISSIONING,BURNGREAVE SURGERY,33509197,"8,435.96",SICKC,S3 9DA
Department of Health,NHS Sheffield CCG,8/31/2020,C&M-PMS Prem Notional Rent,PRC DELEGATED CO-COMMISSIONING,BURNGREAVE SURGERY,33509197,"6,622.92",NRENT,S3 9DA
Department of Health,NHS Sheffield CCG,8/31/2020,C&M-PMS Prem Rates,PRC DELEGATED CO-COMMISSIONING,BURNGREAVE SURGERY,33509197,"2,297.00",RANDRP,S3 9DA
Department of Health,NHS Sheffield CCG,8/31/2020,C&M-PMS QOF Aspiration,PRC DELEGATED CO-COMMISSIONING,BURNGREAVE SURGERY,33509197,"6,134.40",QUASPP,S3 9DA
Department of Health,NHS Sheffield CCG,8/31/2020,C&M-APMS Contract Value,PRC DELEGATED CO-COMMISSIONING,CLOVER GROUP PRACTICE,33509198,"132,241.77",APMADD,S9 4QH
Department of Health,NHS Sheffield CCG,8/31/2020,C&M-APMS PCN DES Participation,PRC DELEGATED CO-COMMISSIONING,CLOVER GROUP PRACTICE,33509198,"2,478.23",PARTIA,S9 4QH
Department of Health,NHS Sheffield CCG,8/31/2020,C&M-APMS Prem Actual Rent,PRC DELEGATED CO-COMMISSIONING,CLOVER GROUP PRACTICE,33509198,"5,169.68",RENTA,S9 4QH
Department of Health,NHS Sheffield CCG,8/31/2020,C&M-APMS Prem Healthcentre Rent,PRC DELEGATED CO-COMMISSIONING,CLOVER GROUP PRACTICE,33509198,"59,788.21",HEALTA,S9 4QH
Department of Health,NHS Sheffield CCG,8/31/2020,C&M-APMS Prem Notional Rent,PRC DELEGATED CO-COMMISSIONING,CLOVER GROUP PRACTICE,33509198,"2,804.17",NRENTA,S9 4QH
Department of Health,NHS Sheffield CCG,8/31/2020,C&M-APMS QOF Aspiration,PRC DELEGATED CO-COMMISSIONING,CLOVER GROUP PRACTICE,33509198,871.99,ASPIRA,S9 4QH
Department of Health,NHS Sheffield CCG,8/31/2020,C&M-PMS PCO Locum Adop/Pat/Mat,PRC DELEGATED CO-COMMISSIONING,CLOVER GROUP PRACTICE,33509198,"11,680.20",SICKC,S9 4QH
Department of Health,NHS Sheffield CCG,8/31/2020,C&M-PMS QOF Aspiration,PRC DELEGATED CO-COMMISSIONING,CLOVER GROUP PRACTICE,33509198,"11,362.38",QUASPP,S9 4QH
Department of Health,NHS Sheffield CCG,8/31/2020,Hcare Srv Rec NHS Trust-Non Contract,NCAS/OATS,IMPERIAL COLLEGE HEALTHCARE NHS TRUST,33533840,"26,117.88",,W2 1NY
Department of Health,NHS Sheffield CCG,8/31/2020,Other Gen Supplies & Srv,BEREAVEMENT SERVICE,DONCASTER AND BASSETLAW HOSPITALS NHS FOUNDATION TRUST,33533960,"29,509.75","Working Together, March 2020 re R Parker",WF3 1WE
Department of Health,NHS Sheffield CCG,8/31/2020,Other Gen Supplies & Srv,BEREAVEMENT SERVICE,DONCASTER AND BASSETLAW HOSPITALS NHS FOUNDATION TRUST,33534004,"32,641.79","Working Together, May2020",WF3 1WE
Department of Health,NHS Sheffield CCG,8/31/2020,Clinical&Medical-Commercial Sector,PATIENT TRANSPORT,PREMIER CARE DIRECT LTD,33534026,"112,480.55",https://nww.einvoice-prod.sbs.nhs.uk:8179/invoicepdf/2367a7f8-1c26-56eb-bc3f-24a4091bc565,DN4 5NU
Department of Health,NHS Sheffield CCG,8/31/2020,Other Gen Supplies & Srv,BEREAVEMENT SERVICE,DONCASTER AND BASSETLAW HOSPITALS NHS FOUNDATION TRUST,33535332,"-32,641.79","Working Together, May2020",WF3 1WE
Department of Health,NHS Sheffield CCG,8/31/2020,Other Gen Supplies & Srv,BEREAVEMENT SERVICE,DONCASTER AND BASSETLAW HOSPITALS NHS FOUNDATION TRUST,33535338,"-21,494.81","Working Together, April 2020",WF3 1WE
Department of Health,NHS Sheffield CCG,8/31/2020,Other Gen Supplies & Srv,BEREAVEMENT SERVICE,DONCASTER AND BASSETLAW HOSPITALS NHS FOUNDATION TRUST,33535338,"-3,690.63","Working Together, March 2020 re R Parker",WF3 1WE
Department of Health,NHS Sheffield CCG,8/31/2020,Cont Care-Physical Disab (65+),CHC ADULT FULLY FUNDED,ABBEYCARE NURSING,33535548,"56,420.62",,S35 9YY
Department of Health,NHS Sheffield CCG,8/31/2020,Hcare Srv Rec Fdtn Trust-Contract Baseline,ACUTE COMMISSIONING,BARNSLEY HOSPITAL NHS FOUNDATION TRUST,33540018,"131,016.71",,S75 2EP
Department of Health,NHS Sheffield CCG,8/31/2020,Hcare Srv Rec Fdtn Trust-Contract Baseline,ACUTE COMMISSIONING,CHESTERFIELD ROYAL HOSPITAL NHS FOUNDATION TRUST,33540019,"369,177.00",,S44 5BL
Department of Health,NHS Sheffield CCG,8/31/2020,Hcare Srv Rec Fdtn Trust-Contract Baseline,ACUTE COMMISSIONING,DONCASTER AND BASSETLAW HOSPITALS NHS FOUNDATION TRUST,33540020,"79,729.44",,WF3 1WE
Department of Health,NHS Sheffield CCG,8/31/2020,Hcare Srv Rec NHS Trust-Contract Baseline,ACUTE COMMISSIONING,LEEDS TEACHING HOSPITALS NHS TRUST,33540022,"47,860.51",,LS9 7TF
Department of Health,NHS Sheffield CCG,8/31/2020,Hcare Srv Rec NHS Trust-Contract Baseline,ACUTE COMMISSIONING,MID YORKSHIRE HOSPITALS NHS TRUST,33540023,"26,386.10",,WF1 4DG
Department of Health,NHS Sheffield CCG,8/31/2020,Hcare Srv Rec Fdtn Trust-Non Contract,NCAS/OATS,YORK TEACHING HOSPITAL NHS FOUNDATION TRUST,33540024,"29,013.29",,YO30 4RY
Department of Health,NHS Sheffield CCG,8/31/2020,Hcare Srv Rec NHS Trust-Contract Baseline,AMBULANCE SERVICES,YORKSHIRE AMBULANCE SERVICE NHS TRUST,33540025,"2,487,179.62",,WF2 0XQ
Department of Health,NHS Sheffield CCG,8/31/2020,Hcare Srv Rec Fdtn Trust-Contract Baseline,ACUTE CHILDRENS SERVICES,SHEFFIELD CHILDRENS NHS FOUNDATION TRUST,33540026,"3,460,348.98",,S10 2TH
Department of Health,NHS Sheffield CCG,8/31/2020,Hcare Srv Rec Fdtn Trust-Contract Baseline,MENTAL HEALTH CONTRACTS,SHEFFIELD HEALTH & SOCIAL CARE NHS FOUNDATION TRUST,33540027,"7,311,989.53",,S10 3TH
Department of Health,NHS Sheffield CCG,8/31/2020,Hcare Srv Rec Fdtn Trust-Contract Baseline,ACUTE COMMISSIONING,SHEFFIELD TEACHING HOSPITALS NHS FOUNDATION TRUST,33540028,"37,588,203.57",,S5 7AU
Department of Health,NHS Sheffield CCG,8/31/2020,Hcare Srv Rec Fdtn Trust-Contract Baseline,ACUTE COMMISSIONING,ROTHERHAM NHS FOUNDATION TRUST,33540029,"618,988.29",,S60 2TY
Department of Health,NHS Sheffield CCG,8/31/2020,Hcare Srv Rec NHS Trust-Contract Baseline,ACUTE COMMISSIONING,UNITED LINCOLNSHIRE HOSPITALS NHS TRUST,33540030,"27,985.26",,LN2 5QY
Department of Health,NHS Sheffield CCG,8/31/2020,Hcare Srv Rec Fdtn Trust-Contract Baseline,MENTAL HEALTH CONTRACTS,ROTHERHAM DONCASTER AND SOUTH HUMBER NHS FOUNDATION TRUST,33540031,"37,808.66",,DN4 8QN
Department of Health,NHS Sheffield CCG,8/31/2020,Hcare Srv Rec Fdtn Trust-Contract Baseline,ACUTE COMMISSIONING,MANCHESTER UNIVERSITY NHS FOUNDATION TRUST,33540032,"25,929.20",,M41 5SL
Department of Health,NHS Sheffield CCG,8/31/2020,Clinical&Medical-Independent Sector,MENTAL HEALTH SERVICES - OTHER,MANOR & CASTLE DEVELOPMENT TRUST LTD,33552769,"65,667.00",,S9 4WG
Department of Health,NHS Sheffield CCG,8/31/2020,Cont Care-Physical Disab (65+),CHC ADULT FULLY FUNDED,ABBEYCARE NURSING,33553194,"56,420.62",,S35 9YY
Department of Health,NHS Sheffield CCG,8/31/2020,Clinical&Medical-Voluntary Sector,MENTAL HEALTH SERVICES - OTHER,AGE UK SHEFFIELD,33553212,"48,236.00",,S2 3FG
Department of Health,NHS Sheffield CCG,8/31/2020,Clinical&Medical-Independent Sector,MENTAL HEALTH SERVICES - OTHER,NETHERTHORPE & UPPERTHORPE COMMUNITY ALLIANCE TA ZEST,33572391,"47,396.00",,S6 3NA
Department of Health,NHS Sheffield CCG,8/31/2020,Clinical&Medical-Voluntary Sector,MENTAL HEALTH SERVICES - OTHER,WOODHOUSE & DISTRICT COMMUNITY FORUM,33572396,"65,810.00",,S13 7TE
Department of Health,NHS Sheffield CCG,8/31/2020,Clinical&Medical-Independent Sector,MENTAL HEALTH SERVICES - OTHER,PRIMARY CARE SHEFFIELD LTD,33572400,"122,334.00",,S9 4EU
Department of Health,NHS Sheffield CCG,8/31/2020,Clinical&Medical-Voluntary Sector,MENTAL HEALTH SERVICES - OTHER,SHEFFIELD CITIZENS ADVICE AND LAW CENTRE,33572404,"46,604.40",,S1 4FW
Department of Health,NHS Sheffield CCG,8/31/2020,Clinical&Medical-Independent Sector,MENTAL HEALTH SERVICES - OTHER,PRIMARY CARE SHEFFIELD LTD,33572412,"30,583.50",,S9 4EU
Department of Health,NHS Sheffield CCG,8/31/2020,Clinical&Medical-Othe Public Sector,CHILD AND ADOLESCENT MENTAL HEALTH,SHEFFIELD CITY COUNCIL,33572417,"327,477.00",,S1 2HH
Department of Health,NHS Sheffield CCG,8/31/2020,Cont Care-Funded Nursing Care Allow,FUNDED NURSING CARE,ROSEBERRY CARE CENTRES,33586341,"25,178.41",FNC SCHEDULE AUGUST 2020 - Haythorne Place Nursing Home (Roseberry),S5 6AB
Department of Health,NHS Sheffield CCG,8/31/2020,Cont Care- Prior Year Payments,FUNDED NURSING CARE,WILLOWBECK HEALTH CARE LTD,33586437,"-28,928.92",FNC SCHEDULE AUGUST 2020PY - Willowbeck Health Care Ltd (Exemplar HC),S4 8AR
Department of Health,NHS Sheffield CCG,8/31/2020,Cont Care-Physical Disab (65+),CHC ADULT FULLY FUNDED,SHEFFIELD CITY COUNCIL,33594562,"1,019,166.27",RMT SCHEDULE AUGUST 2020,S1 1UJ
Department of Health,NHS Sheffield CCG,8/31/2020,Cont Care- Children,CHC CHILDREN,SHEFFIELD CITY COUNCIL,33594564,"96,755.45",CHILDRENS SCHEDULE AUGUST 2020,S1 1UJ
Department of Health,NHS Sheffield CCG,8/31/2020,Clinical&Medical-Voluntary Sector,MENTAL HEALTH SERVICES - OTHER,SOAR COMMUNITY,33604346,"72,104.00",,S5 9NU
Department of Health,NHS Sheffield CCG,8/31/2020,Services From Local Authorities,MENTAL HEALTH SERVICES - COLLABORATIVE COMMISSIONING,SHEFFIELD CITY COUNCIL,33604353,"39,081.64",,S1 1UJ
Department of Health,NHS Sheffield CCG,8/31/2020,Clinical&Medical-Independent Sector,ACUTE COMMISSIONING,ONEHEALTH GROUP,33604358,"-244,551.40",https://nww.einvoice-prod.sbs.nhs.uk:8179/invoicepdf/7d56647d-b677-5237-87dd-217efc0b7d5e,S11 8UX
Department of Health,NHS Sheffield CCG,8/31/2020,Cont Care-Physical Disab (<65),CHC ADULT FULLY FUNDED,COUNTRY COURT CARE LTD,33618182,"44,403.14",CHC SCHEDULE AUGUST 2020 - Abbey Grange Nursing Home (Country Court Care),S5 6UU
Department of Health,NHS Sheffield CCG,8/31/2020,Cont Care-Physical Disab (<65),CHC ADULT FULLY FUNDED,FOUR SEASONS HEALTH CARE LTD,33618184,"44,083.42",CHC SCHEDULE AUGUST 2020 - Balmoral Nursing Home (Four Seasons HC),DL1 1RW
Department of Health,NHS Sheffield CCG,8/31/2020,Cont Care-Physical Disab (<65),CHC ADULT FULLY FUNDED,SOUTH YORKSHIRE HOUSING ASSOCIATION LTD,33618186,"99,640.20",CHC SCHEDULE AUGUST 2020 - Birch Avenue Nursing Home (SYHA),S35 1RQ
Department of Health,NHS Sheffield CCG,8/31/2020,Cont Care-Physical Disab (<65),CHC ADULT FULLY FUNDED,FAIRWINDS HEALTH CARE LTD,33618189,"46,560.50",CHC SCHEDULE AUGUST 2020 - Fairwinds Nursing Home,S61 1AJ
Department of Health,NHS Sheffield CCG,8/31/2020,Cont Care-Physical Disab (<65),CHC ADULT FULLY FUNDED,FOUR SEASONS HEALTH CARE LTD,33618191,"27,864.27",CHC SCHEDULE AUGUST 2020 - Henleigh Hall Nursing Home,DL1 1RW
Department of Health,NHS Sheffield CCG,8/31/2020,Cont Care-Physical Disab (<65),CHC ADULT FULLY FUNDED,LAURELS & LIMES CARE HOME (THE),33618192,"28,492.91",CHC SCHEDULE AUGUST 2020 - The Laurels & The Limes Care Home,S10 5DN
Department of Health,NHS Sheffield CCG,8/31/2020,Cont Care-Physical Disab (<65),CHC ADULT FULLY FUNDED,LONGLEY HEALTH CARE LTD,33618193,"98,176.32",CHC SCHEDULE AUGUST 2020 - Longley Park View Nursing Home (Exemplar HC),S5 7JZ
Department of Health,NHS Sheffield CCG,8/31/2020,Cont Care-Physical Disab (<65),CHC ADULT FULLY FUNDED,PRIORY GROUP LTD,33618198,"57,328.65",CHC SCHEDULE AUGUST 2020 - Richmond Heights Care Home (The Priory Group),DL2 1TS
Department of Health,NHS Sheffield CCG,8/31/2020,Cont Care-Physical Disab (<65),CHC ADULT FULLY FUNDED,SCARSDALE GRANGE NURSING HOME,33618200,"25,162.07",CHC SCHEDULE AUGUST 2020 - Scarsdale Grange Nursing Home,S8 9EQ
Department of Health,NHS Sheffield CCG,8/31/2020,Cont Care-Physical Disab (<65),CHC ADULT FULLY FUNDED,SEVEN HILLS NURSING HOME,33618201,"64,672.61",CHC SCHEDULE AUGUST 2020 - Seven Hills Nursing Home,S11 9AA
Department of Health,NHS Sheffield CCG,8/31/2020,Cont Care-Physical Disab (<65),CHC ADULT FULLY FUNDED,WILLOWBECK HEALTH CARE LTD,33618206,"132,985.62",CHC SCHEDULE AUGUST 2020 - Willowbeck Health Care Ltd (Exemplar HC),S4 8AR
Department of Health,NHS Sheffield CCG,8/31/2020,Cont Care-Physical Disab (<65),CHC ADULT FULLY FUNDED,ROSEBERRY CARE CENTRES,33618208,"31,976.53",CHC SCHEDULE AUGUST 2020 - Chapel Lodge Nursing Home (Roseberry),S35 2XF
Department of Health,NHS Sheffield CCG,8/31/2020,Cont Care-Physical Disab (<65),CHC ADULT FULLY FUNDED,ROSEBERRY CARE CENTRES,33618209,"59,396.26",CHC SCHEDULE AUGUST 2020 - Haythorne Place Nursing Home (Roseberry),S5 6AB
Department of Health,NHS Sheffield CCG,8/31/2020,Cont Care-Physical Disab (<65),CHC ADULT FULLY FUNDED,HC ONE LTD,33618212,"28,228.18",CHC SCHEDULE AUGUST 2020 - Alexander Court Care Home (HC One),DL3 6AH
Department of Health,NHS Sheffield CCG,8/31/2020,Cont Care-Physical Disab (<65),CHC ADULT FULLY FUNDED,HC ONE LTD,33618213,"29,329.39",CHC SCHEDULE AUGUST 2020 - Ascot Lodge Nursing Home (HC One),DL3 6AH
Department of Health,NHS Sheffield CCG,8/31/2020,Cont Care-Physical Disab (<65),CHC ADULT FULLY FUNDED,BONDCARE,33618217,"82,961.16",CHC SCHEDULE AUGUST 2020 - Chatsworth Grange Nursing Home,NW4 4EF
Department of Health,NHS Sheffield CCG,8/31/2020,Cont Care-Physical Disab (<65),CHC ADULT FULLY FUNDED,ROSEBERRY CARE CENTRES,33618219,"51,604.78",CHC SCHEDULE AUGUST 2020 - Norbury Court Care Centre (Roseberry),S4 7AJ
Department of Health,NHS Sheffield CCG,8/31/2020,Cont Care-Physical Disab (<65),CHC ADULT FULLY FUNDED,SUSASH GB LTD T/A EAGLE HOUSE,33618220,"25,599.09",CHC SCHEDULE AUGUST 2020 - Eagle House Nursing Home (Susash GB Ltd),S11 8NP
Department of Health,NHS Sheffield CCG,8/31/2020,Cont Care-Physical Disab (<65),CHC ADULT FULLY FUNDED,VALORUM CARE LTD,33618221,"72,287.69",CHC SCHEDULE AUGUST 2020 - Valorum Care Limited (Mickley Hall),LS19 7RW
Department of Health,NHS Sheffield CCG,8/31/2020,Clinical&Medical-Voluntary Sector,CHILD AND ADOLESCENT MENTAL HEALTH,SHEFFIELD FUTURES,33618308,"-85,254.00",August 2020 Grant Payment - Sheffield Futures (YIACS -Door 43) - Credit April 20 to July 20 Grant payments,S1 4GE
Department of Health,NHS Sheffield CCG,8/31/2020,C&M-GMS IT Comm Servs -GP Practices,PRIMARY CARE IT,REDCENTRIC SOLUTIONS LTD,33621931,"28,890.72",https://nww.einvoice-prod.sbs.nhs.uk:8179/invoicepdf/d3de6476-2ece-5113-bdc6-3a9a74ab785a,HG3 1UG
Department of Health,NHS Sheffield CCG,8/31/2020,Cont Care-Physical Disab (<65),CHC ADULT FULLY FUNDED,INLET LTD,33627223,"62,455.26",CHC SCHEDULE AUGUST 2020 - Loxley Court (Inlet Ltd),S48NB
Department of Health,NHS Sheffield CCG,8/31/2020,Cont Care- Prior Year Payments,CHC ADULT FULLY FUNDED,HORIZON CARE HOMES LTD,33627231,"25,337.14",CHC SCHEDULE AUGUST 2020PY - Wood Hill Lodge,S25 3QA
Department of Health,NHS Sheffield CCG,8/31/2020,Cont Care-Physical Disab (<65),CHC ADULT FULLY FUNDED,HORIZON CARE HOMES LTD,33632619,"43,384.78",CHC SCHEDULE AUGUST 2020 - Wood Hill Grange (Horizon Care Homes),S25 3QA
Department of Health,NHS Sheffield CCG,8/31/2020,Cont Care-Physical Disab (<65),CHC ADULT FULLY FUNDED,HORIZON CARE HOMES LTD,33632623,"49,987.62",CHC SCHEDULE AUGUST 2020 - Wood Hill House,S25 3QA
Department of Health,NHS Sheffield CCG,8/31/2020,Cont Care-Physical Disab (<65),CHC ADULT FULLY FUNDED,HORIZON CARE HOMES LTD,33632625,"103,988.70",CHC SCHEDULE AUGUST 2020 - Wood Hill Lodge,S25 3QA
Department of Health,NHS Sheffield CCG,8/31/2020,Soc Care-Support Prim Care,COMMUNITY SERVICES,SHEFFIELD CITY COUNCIL,33650457,"2,566,000.00",,S1 2HH
Department of Health,NHS Sheffield CCG,8/31/2020,Clinical&Medical-Voluntary Sector,HOSPICES,ST LUKES HOSPICE,33650470,"25,000.00",,S11 9NE
Department of Health,NHS Sheffield CCG,8/31/2020,Clinical&Medical-Othe Public Sector,COMMUNITY SERVICES,SHEFFIELD CITY COUNCIL,33650515,"150,416.67",,S1 1UJ
Department of Health,NHS Sheffield CCG,8/31/2020,Clinical&Medical-Othe Public Sector,MENTAL HEALTH SERVICES - COLLABORATIVE COMMISSIONING,SHEFFIELD CITY COUNCIL,33650515,"83,669.08",,S1 1UJ
Department of Health,NHS Sheffield CCG,8/31/2020,Clinical&Medical-Othe Public Sector,REABLEMENT,SHEFFIELD CITY COUNCIL,33650515,"21,808.67",,S1 1UJ
Department of Health,NHS Sheffield CCG,8/31/2020,Clinical&Medical-Othe Public Sector,SAFEGUARDING,SHEFFIELD CITY COUNCIL,33650515,"16,596.34",,S1 1UJ
Department of Health,NHS Sheffield CCG,8/31/2020,Cont Care-Physical Disab (65+),CHC ADULT FULLY FUNDED,SHEFFIELD CITY COUNCIL,33650515,"59,435.47",,S1 1UJ
Department of Health,NHS Sheffield CCG,8/31/2020,Soc Care-Joint H&C Teams/Working,INTERMEDIATE CARE,SHEFFIELD CITY COUNCIL,33650515,"151,447.58",,S1 1UJ
Department of Health,NHS Sheffield CCG,8/31/2020,Soc Care-Other Soc Care,COMMISSIONING - NON ACUTE,SHEFFIELD CITY COUNCIL,33650515,"1,635,250.00",,S1 1UJ
Department of Health,NHS Sheffield CCG,8/31/2020,Soc Care-Support Prim Care,COMMUNITY SERVICES,SHEFFIELD CITY COUNCIL,33650515,"58,000.00",,S1 1UJ
Department of Health,NHS Sheffield CCG,8/31/2020,Clinical&Medical-Independent Sector,ACUTE COMMISSIONING,SPAMEDICA LTD,33650527,"40,958.69",https://nww.einvoice-prod.sbs.nhs.uk:8179/invoicepdf/11afbc54-14dd-57b7-a81b-493e3a671f67,M15 4SQ
Department of Health,NHS Sheffield CCG,8/31/2020,C&M-GMS Prem Other,PRC DELEGATED CO-COMMISSIONING,NHS ENGLAND,33650547,"4,157.73",,WF3 1WE
Department of Health,NHS Sheffield CCG,8/31/2020,Contract- Refuse & Clinical Waste,PRC DELEGATED CO-COMMISSIONING,NHS ENGLAND,33650547,"98,382.32",CCG RECHARGE,WF3 1WE
Department of Health,NHS Sheffield CCG,8/31/2020,C&M-GMS GP Statutory Levy,PRC DELEGATED CO-COMMISSIONING,BASLOW ROAD & SHOREHAM STREET SURGERIES,33668534,-436.14,STATL,S17 4DR
Department of Health,NHS Sheffield CCG,8/31/2020,C&M-GMS Global Sum,PRC DELEGATED CO-COMMISSIONING,BASLOW ROAD & SHOREHAM STREET SURGERIES,33668535,"99,359.75",GSUMG,S17 4DR
Department of Health,NHS Sheffield CCG,8/31/2020,C&M-GMS PCN DES Participation,PRC DELEGATED CO-COMMISSIONING,BASLOW ROAD & SHOREHAM STREET SURGERIES,33668535,"1,984.37",PARTIG,S17 4DR
Department of Health,NHS Sheffield CCG,8/31/2020,C&M-GMS Prem Notional Rent,PRC DELEGATED CO-COMMISSIONING,BASLOW ROAD & SHOREHAM STREET SURGERIES,33668535,"8,222.71",NRENT,S17 4DR
Department of Health,NHS Sheffield CCG,8/31/2020,C&M-GMS Prem Rates,PRC DELEGATED CO-COMMISSIONING,BASLOW ROAD & SHOREHAM STREET SURGERIES,33668535,"2,619.00",RANDR,S17 4DR
Department of Health,NHS Sheffield CCG,8/31/2020,C&M-GMS Prem Water Rates,PRC DELEGATED CO-COMMISSIONING,BASLOW ROAD & SHOREHAM STREET SURGERIES,33668535,266.67,RAMW,S17 4DR
Department of Health,NHS Sheffield CCG,8/31/2020,C&M-GMS QOF Aspiration,PRC DELEGATED CO-COMMISSIONING,BASLOW ROAD & SHOREHAM STREET SURGERIES,33668535,"21,314.08",QUASPG,S17 4DR
Department of Health,NHS Sheffield CCG,8/31/2020,C&M-GMS GP Statutory Levy,PRC DELEGATED CO-COMMISSIONING,BROOMHILL SURGERY,33668540,-342.83,STATL,S10 5BU
Department of Health,NHS Sheffield CCG,8/31/2020,C&M-GMS Cost of Drugs -Prescribing,LOCAL ENHANCED SERVICES,BROOMHILL SURGERY,33668541,"1,709.99",DRGP,S10 5BU
Department of Health,NHS Sheffield CCG,8/31/2020,C&M-GMS Global Sum,PRC DELEGATED CO-COMMISSIONING,BROOMHILL SURGERY,33668541,"67,105.41",GSUMG,S10 5BU
Department of Health,NHS Sheffield CCG,8/31/2020,C&M-GMS PCN DES Participation,PRC DELEGATED CO-COMMISSIONING,BROOMHILL SURGERY,33668541,"1,329.60",PARTIG,S10 5BU
Department of Health,NHS Sheffield CCG,8/31/2020,C&M-GMS Prem Cost Rent,PRC DELEGATED CO-COMMISSIONING,BROOMHILL SURGERY,33668541,"2,975.42",COST,S10 5BU
Department of Health,NHS Sheffield CCG,8/31/2020,C&M-GMS Prem Notional Rent,PRC DELEGATED CO-COMMISSIONING,BROOMHILL SURGERY,33668541,"2,612.50",NRENT,S10 5BU
Department of Health,NHS Sheffield CCG,8/31/2020,C&M-GMS Prof Fees Prescribing,PRC DELEGATED CO-COMMISSIONING,BROOMHILL SURGERY,33668541,52.97,DRGPPF,S10 5BU
Department of Health,NHS Sheffield CCG,8/31/2020,C&M-GMS QOF Aspiration,PRC DELEGATED CO-COMMISSIONING,BROOMHILL SURGERY,33668541,"6,610.83",QUASPG,S10 5BU
Department of Health,NHS Sheffield CCG,8/31/2020,C&M-GMS Cost of Drugs -Prescribing,LOCAL ENHANCED SERVICES,CHARNOCK HEALTH PRIMARY CARE CENTRE,33668543,"1,348.31",DRGP,S12 3GH
Department of Health,NHS Sheffield CCG,8/31/2020,C&M-GMS DES Learn Dsblty Hlth Chk,PRC DELEGATED CO-COMMISSIONING,CHARNOCK HEALTH PRIMARY CARE CENTRE,33668543,840.00,LEARNG,S12 3GH
Department of Health,NHS Sheffield CCG,8/31/2020,C&M-GMS Global Sum,PRC DELEGATED CO-COMMISSIONING,CHARNOCK HEALTH PRIMARY CARE CENTRE,33668543,"44,623.04",GSUMG,S12 3GH
Department of Health,NHS Sheffield CCG,8/31/2020,C&M-GMS PCN DES Participation,PRC DELEGATED CO-COMMISSIONING,CHARNOCK HEALTH PRIMARY CARE CENTRE,33668543,893.45,PARTIG,S12 3GH
Department of Health,NHS Sheffield CCG,8/31/2020,C&M-GMS PCO Other,PRC DELEGATED CO-COMMISSIONING,CHARNOCK HEALTH PRIMARY CARE CENTRE,33668543,371.00,CQCRG,S12 3GH
Department of Health,NHS Sheffield CCG,8/31/2020,C&M-GMS Prem Notional Rent,PRC DELEGATED CO-COMMISSIONING,CHARNOCK HEALTH PRIMARY CARE CENTRE,33668543,335.00,NRENT,S12 3GH
Department of Health,NHS Sheffield CCG,8/31/2020,C&M-GMS Prem Rates,PRC DELEGATED CO-COMMISSIONING,CHARNOCK HEALTH PRIMARY CARE CENTRE,33668543,"1,572.00",RANDR,S12 3GH
Department of Health,NHS Sheffield CCG,8/31/2020,C&M-GMS Prem Water Rates,PRC DELEGATED CO-COMMISSIONING,CHARNOCK HEALTH PRIMARY CARE CENTRE,33668543,385.03,RAMW,S12 3GH
Department of Health,NHS Sheffield CCG,8/31/2020,C&M-GMS Prof Fees Prescribing,PRC DELEGATED CO-COMMISSIONING,CHARNOCK HEALTH PRIMARY CARE CENTRE,33668543,96.72,DRGPPF,S12 3GH
Department of Health,NHS Sheffield CCG,8/31/2020,C&M-GMS QOF Aspiration,PRC DELEGATED CO-COMMISSIONING,CHARNOCK HEALTH PRIMARY CARE CENTRE,33668543,"4,918.11",QUASPG,S12 3GH
Department of Health,NHS Sheffield CCG,8/31/2020,C&M-GMS GP Statutory Levy,PRC DELEGATED CO-COMMISSIONING,CARTERKNOWLE & DORE MEDICAL PRACTICE,33668546,-440.37,STATL,S7 2DW
Department of Health,NHS Sheffield CCG,8/31/2020,C&M-GMS Cost of Drugs -Prescribing,LOCAL ENHANCED SERVICES,CROOKES PRACTICE,33668551,66.18,DRGP,S10 1GN
Department of Health,NHS Sheffield CCG,8/31/2020,C&M-GMS DES Learn Dsblty Hlth Chk,PRC DELEGATED CO-COMMISSIONING,CROOKES PRACTICE,33668551,840.00,LEARNG,S10 1GN
Department of Health,NHS Sheffield CCG,8/31/2020,C&M-GMS Global Sum,PRC DELEGATED CO-COMMISSIONING,CROOKES PRACTICE,33668551,"54,789.72",GSUMG,S10 1GN
Department of Health,NHS Sheffield CCG,8/31/2020,C&M-GMS PCN DES Participation,PRC DELEGATED CO-COMMISSIONING,CROOKES PRACTICE,33668551,"1,070.10",PARTIG,S10 1GN
Department of Health,NHS Sheffield CCG,8/31/2020,C&M-GMS PCO Locum Sickness,PRC DELEGATED CO-COMMISSIONING,CROOKES PRACTICE,33668551,"4,967.88",LOCSIG,S10 1GN
Department of Health,NHS Sheffield CCG,8/31/2020,C&M-GMS PCO Other,PRC DELEGATED CO-COMMISSIONING,CROOKES PRACTICE,33668551,527.70,CQCRG,S10 1GN
Department of Health,NHS Sheffield CCG,8/31/2020,C&M-GMS Prem Notional Rent,PRC DELEGATED CO-COMMISSIONING,CROOKES PRACTICE,33668551,"3,874.67",NRENT,S10 1GN
Department of Health,NHS Sheffield CCG,8/31/2020,C&M-GMS Prem Rates,PRC DELEGATED CO-COMMISSIONING,CROOKES PRACTICE,33668551,"1,534.00",RANDR,S10 1GN
Department of Health,NHS Sheffield CCG,8/31/2020,C&M-GMS Prof Fees Prescribing,PRC DELEGATED CO-COMMISSIONING,CROOKES PRACTICE,33668551,27.64,DRGPPF,S10 1GN
Department of Health,NHS Sheffield CCG,8/31/2020,C&M-GMS QOF Aspiration,PRC DELEGATED CO-COMMISSIONING,CROOKES PRACTICE,33668551,"4,958.88",QUASPG,S10 1GN
Department of Health,NHS Sheffield CCG,8/31/2020,C&M-GMS Cost of Drugs -Prescribing,LOCAL ENHANCED SERVICES,DEVONSHIRE GREEN MEDICAL CENTRE,33668554,159.03,DRGP,S3 7SF
Department of Health,NHS Sheffield CCG,8/31/2020,C&M-GMS Global Sum,PRC DELEGATED CO-COMMISSIONING,DEVONSHIRE GREEN MEDICAL CENTRE,33668554,"48,647.96",GSUMG,S3 7SF
Department of Health,NHS Sheffield CCG,8/31/2020,C&M-GMS PCN DES Participation,PRC DELEGATED CO-COMMISSIONING,DEVONSHIRE GREEN MEDICAL CENTRE,33668554,935.21,PARTIG,S3 7SF
Department of Health,NHS Sheffield CCG,8/31/2020,C&M-GMS Prem Notional Rent,PRC DELEGATED CO-COMMISSIONING,DEVONSHIRE GREEN MEDICAL CENTRE,33668554,"5,987.50",NRENT,S3 7SF
Department of Health,NHS Sheffield CCG,8/31/2020,C&M-GMS Prem Rates,PRC DELEGATED CO-COMMISSIONING,DEVONSHIRE GREEN MEDICAL CENTRE,33668554,"1,385.00",RANDR,S3 7SF
Department of Health,NHS Sheffield CCG,8/31/2020,C&M-GMS Prof Fees Prescribing,PRC DELEGATED CO-COMMISSIONING,DEVONSHIRE GREEN MEDICAL CENTRE,33668554,55.27,DRGPPF,S3 7SF
Department of Health,NHS Sheffield CCG,8/31/2020,C&M-GMS QOF Aspiration,PRC DELEGATED CO-COMMISSIONING,DEVONSHIRE GREEN MEDICAL CENTRE,33668554,"4,846.82",QUASPG,S3 7SF
Department of Health,NHS Sheffield CCG,8/31/2020,C&M-GMS Cost of Drugs -Prescribing,LOCAL ENHANCED SERVICES,ECCLESFIELD GROUP PRACTICE,33668557,"1,501.89",DRGP,S35 9XQ
Department of Health,NHS Sheffield CCG,8/31/2020,C&M-GMS DES Extended Hours Access,PRC DELEGATED CO-COMMISSIONING,ECCLESFIELD GROUP PRACTICE,33668557,"5,160.79",EXTHDG,S35 9XQ
Department of Health,NHS Sheffield CCG,8/31/2020,C&M-GMS DES Learn Dsblty Hlth Chk,PRC DELEGATED CO-COMMISSIONING,ECCLESFIELD GROUP PRACTICE,33668557,"5,740.00",LEARNG,S35 9XQ
Department of Health,NHS Sheffield CCG,8/31/2020,C&M-GMS Global Sum,PRC DELEGATED CO-COMMISSIONING,ECCLESFIELD GROUP PRACTICE,33668557,"73,424.44",GSUMG,S35 9XQ
Department of Health,NHS Sheffield CCG,8/31/2020,C&M-GMS PCN DES Clinical Director,PRC DELEGATED CO-COMMISSIONING,ECCLESFIELD GROUP PRACTICE,33668557,"2,569.72",CLINDG,S35 9XQ
Department of Health,NHS Sheffield CCG,8/31/2020,C&M-GMS PCN DES PCN support,LOCAL ENHANCED SERVICES,ECCLESFIELD GROUP PRACTICE,33668557,"5,338.75",PCNSUG,S35 9XQ
Department of Health,NHS Sheffield CCG,8/31/2020,C&M-GMS PCN DES Participation,PRC DELEGATED CO-COMMISSIONING,ECCLESFIELD GROUP PRACTICE,33668557,"1,438.45",PARTIG,S35 9XQ
Department of Health,NHS Sheffield CCG,8/31/2020,C&M-GMS Prem Notional Rent,PRC DELEGATED CO-COMMISSIONING,ECCLESFIELD GROUP PRACTICE,33668557,"6,805.42",NRENT,S35 9XQ
Department of Health,NHS Sheffield CCG,8/31/2020,C&M-GMS Prem Rates,PRC DELEGATED CO-COMMISSIONING,ECCLESFIELD GROUP PRACTICE,33668557,551.00,RANDR,S35 9XQ
Department of Health,NHS Sheffield CCG,8/31/2020,C&M-GMS Prem Water Rates,PRC DELEGATED CO-COMMISSIONING,ECCLESFIELD GROUP PRACTICE,33668557,521.85,RAMW,S35 9XQ
Department of Health,NHS Sheffield CCG,8/31/2020,C&M-GMS Prof Fees Prescribing,PRC DELEGATED CO-COMMISSIONING,ECCLESFIELD GROUP PRACTICE,33668557,193.46,DRGPPF,S35 9XQ
Department of Health,NHS Sheffield CCG,8/31/2020,C&M-GMS QOF Aspiration,PRC DELEGATED CO-COMMISSIONING,ECCLESFIELD GROUP PRACTICE,33668557,"11,211.51",QUASPG,S35 9XQ
Department of Health,NHS Sheffield CCG,8/31/2020,C&M-PCN DES Support Payment,PRC DELEGATED CO-COMMISSIONING,ECCLESFIELD GROUP PRACTICE,33668557,"2,071.64",SUPPPG,S35 9XQ
Department of Health,NHS Sheffield CCG,8/31/2020,C&M-GMS Cost of Drugs -Prescribing,LOCAL ENHANCED SERVICES,ELM LANE SURGERY,33668559,"1,042.71",DRGP,S5 7TW
Department of Health,NHS Sheffield CCG,8/31/2020,C&M-GMS Global Sum,PRC DELEGATED CO-COMMISSIONING,ELM LANE SURGERY,33668559,"42,637.52",GSUMG,S5 7TW
Department of Health,NHS Sheffield CCG,8/31/2020,C&M-GMS PCN DES Participation,PRC DELEGATED CO-COMMISSIONING,ELM LANE SURGERY,33668559,851.24,PARTIG,S5 7TW
Department of Health,NHS Sheffield CCG,8/31/2020,C&M-GMS Prem Notional Rent,PRC DELEGATED CO-COMMISSIONING,ELM LANE SURGERY,33668559,"5,343.00",NRENT,S5 7TW
Department of Health,NHS Sheffield CCG,8/31/2020,C&M-GMS Prem Rates,PRC DELEGATED CO-COMMISSIONING,ELM LANE SURGERY,33668559,"1,527.00",RANDR,S5 7TW
Department of Health,NHS Sheffield CCG,8/31/2020,C&M-GMS Prof Fees Prescribing,PRC DELEGATED CO-COMMISSIONING,ELM LANE SURGERY,33668559,122.06,DRGPPF,S5 7TW
Department of Health,NHS Sheffield CCG,8/31/2020,C&M-GMS QOF Aspiration,PRC DELEGATED CO-COMMISSIONING,ELM LANE SURGERY,33668559,"4,787.76",QUASPG,S5 7TW
Department of Health,NHS Sheffield CCG,8/31/2020,C&M-GMS Cost of Drugs -Prescribing,LOCAL ENHANCED SERVICES,DUKE MEDICAL CENTRE,33668561,520.96,DRGP,S2 2TD
Department of Health,NHS Sheffield CCG,8/31/2020,C&M-GMS Global Sum,PRC DELEGATED CO-COMMISSIONING,DUKE MEDICAL CENTRE,33668561,"61,654.13",GSUMG,S2 2TD
Department of Health,NHS Sheffield CCG,8/31/2020,C&M-GMS PCN DES Participation,PRC DELEGATED CO-COMMISSIONING,DUKE MEDICAL CENTRE,33668561,"1,155.59",PARTIG,S2 2TD
Department of Health,NHS Sheffield CCG,8/31/2020,C&M-GMS Prem Notional Rent,PRC DELEGATED CO-COMMISSIONING,DUKE MEDICAL CENTRE,33668561,"5,721.67",NRENT,S2 2TD
Department of Health,NHS Sheffield CCG,8/31/2020,C&M-GMS Prem Water Rates,PRC DELEGATED CO-COMMISSIONING,DUKE MEDICAL CENTRE,33668561,30.51,RAMW,S2 2TD
Department of Health,NHS Sheffield CCG,8/31/2020,C&M-GMS Prof Fees Prescribing,PRC DELEGATED CO-COMMISSIONING,DUKE MEDICAL CENTRE,33668561,149.70,DRGPPF,S2 2TD
Department of Health,NHS Sheffield CCG,8/31/2020,C&M-GMS QOF Aspiration,PRC DELEGATED CO-COMMISSIONING,DUKE MEDICAL CENTRE,33668561,"5,286.81",QUASPG,S2 2TD
Department of Health,NHS Sheffield CCG,8/31/2020,C&M-GMS Cost of Drugs -Prescribing,LOCAL ENHANCED SERVICES,FAR LANE MEDICAL CENTRE,33668568,104.62,DRGP,S6 4FA
Department of Health,NHS Sheffield CCG,8/31/2020,C&M-GMS Global Sum,PRC DELEGATED CO-COMMISSIONING,FAR LANE MEDICAL CENTRE,33668568,"57,503.63",GSUMG,S6 4FA
Department of Health,NHS Sheffield CCG,8/31/2020,C&M-GMS PCN DES Participation,PRC DELEGATED CO-COMMISSIONING,FAR LANE MEDICAL CENTRE,33668568,"1,137.91",PARTIG,S6 4FA
Department of Health,NHS Sheffield CCG,8/31/2020,C&M-GMS PCO Other,PRC DELEGATED CO-COMMISSIONING,FAR LANE MEDICAL CENTRE,33668568,460.10,CQCRG,S6 4FA
Department of Health,NHS Sheffield CCG,8/31/2020,C&M-GMS Prem Notional Rent,PRC DELEGATED CO-COMMISSIONING,FAR LANE MEDICAL CENTRE,33668568,"3,504.17",NRENT,S6 4FA
Department of Health,NHS Sheffield CCG,8/31/2020,C&M-GMS Prem Rates,PRC DELEGATED CO-COMMISSIONING,FAR LANE MEDICAL CENTRE,33668568,"1,277.00",RANDR,S6 4FA
Department of Health,NHS Sheffield CCG,8/31/2020,C&M-GMS Prem Water Rates,PRC DELEGATED CO-COMMISSIONING,FAR LANE MEDICAL CENTRE,33668568,52.22,RAMW,S6 4FA
Department of Health,NHS Sheffield CCG,8/31/2020,C&M-GMS Prof Fees Prescribing,PRC DELEGATED CO-COMMISSIONING,FAR LANE MEDICAL CENTRE,33668568,18.43,DRGPPF,S6 4FA
Department of Health,NHS Sheffield CCG,8/31/2020,C&M-GMS QOF Aspiration,PRC DELEGATED CO-COMMISSIONING,FAR LANE MEDICAL CENTRE,33668568,"6,055.38",QUASPG,S6 4FA
Department of Health,NHS Sheffield CCG,8/31/2020,C&M-GMS Global Sum,PRC DELEGATED CO-COMMISSIONING,HAROLD STREET MEDICAL CENTRE,33668571,"20,199.75",GSUMG,S6 3QW
Department of Health,NHS Sheffield CCG,8/31/2020,C&M-GMS PCN DES Participation,PRC DELEGATED CO-COMMISSIONING,HAROLD STREET MEDICAL CENTRE,33668571,405.11,PARTIG,S6 3QW
Department of Health,NHS Sheffield CCG,8/31/2020,C&M-GMS PCO Other,PRC DELEGATED CO-COMMISSIONING,HAROLD STREET MEDICAL CENTRE,33668571,218.90,CQCRG,S6 3QW
Department of Health,NHS Sheffield CCG,8/31/2020,C&M-GMS Prem Notional Rent,PRC DELEGATED CO-COMMISSIONING,HAROLD STREET MEDICAL CENTRE,33668571,"2,337.50",NRENT,S6 3QW
Department of Health,NHS Sheffield CCG,8/31/2020,C&M-GMS QOF Aspiration,PRC DELEGATED CO-COMMISSIONING,HAROLD STREET MEDICAL CENTRE,33668571,"5,678.78",QUASPG,S6 3QW
Department of Health,NHS Sheffield CCG,8/31/2020,C&M-GMS Cost of Drugs -Prescribing,LOCAL ENHANCED SERVICES,HANDSWORTH MEDICAL PRACTICE SHEFFIELD,33668574,493.39,DRGP,S13 9BZ
Department of Health,NHS Sheffield CCG,8/31/2020,C&M-GMS Global Sum,PRC DELEGATED CO-COMMISSIONING,HANDSWORTH MEDICAL PRACTICE SHEFFIELD,33668574,"81,962.64",GSUMG,S13 9BZ
Department of Health,NHS Sheffield CCG,8/31/2020,C&M-GMS PCN DES Participation,PRC DELEGATED CO-COMMISSIONING,HANDSWORTH MEDICAL PRACTICE SHEFFIELD,33668574,"1,599.78",PARTIG,S13 9BZ
Department of Health,NHS Sheffield CCG,8/31/2020,C&M-GMS Prem Notional Rent,PRC DELEGATED CO-COMMISSIONING,HANDSWORTH MEDICAL PRACTICE SHEFFIELD,33668574,"3,321.66",NRENT,S13 9BZ
Department of Health,NHS Sheffield CCG,8/31/2020,C&M-GMS Prem Rates,PRC DELEGATED CO-COMMISSIONING,HANDSWORTH MEDICAL PRACTICE SHEFFIELD,33668574,"1,299.80",RANDR,S13 9BZ
Department of Health,NHS Sheffield CCG,8/31/2020,C&M-GMS Prof Fees Prescribing,PRC DELEGATED CO-COMMISSIONING,HANDSWORTH MEDICAL PRACTICE SHEFFIELD,33668574,163.52,DRGPPF,S13 9BZ
Department of Health,NHS Sheffield CCG,8/31/2020,C&M-GMS QOF Aspiration,PRC DELEGATED CO-COMMISSIONING,HANDSWORTH MEDICAL PRACTICE SHEFFIELD,33668574,"7,866.23",QUASPG,S13 9BZ
Department of Health,NHS Sheffield CCG,8/31/2020,C&M-GMS Cost of Drugs -Prescribing,LOCAL ENHANCED SERVICES,GRENOSIDE SURGERY,33668576,"1,884.77",DRGP,S35 8NX
Department of Health,NHS Sheffield CCG,8/31/2020,C&M-GMS Global Sum,PRC DELEGATED CO-COMMISSIONING,GRENOSIDE SURGERY,33668576,"62,567.80",GSUMG,S35 8NX
Department of Health,NHS Sheffield CCG,8/31/2020,C&M-GMS PCN DES Participation,PRC DELEGATED CO-COMMISSIONING,GRENOSIDE SURGERY,33668576,"1,220.08",PARTIG,S35 8NX
Department of Health,NHS Sheffield CCG,8/31/2020,C&M-GMS Prem Notional Rent,PRC DELEGATED CO-COMMISSIONING,GRENOSIDE SURGERY,33668576,"8,110.42",NRENT,S35 8NX
Department of Health,NHS Sheffield CCG,8/31/2020,C&M-GMS Prem Rates,PRC DELEGATED CO-COMMISSIONING,GRENOSIDE SURGERY,33668576,"2,109.00",RANDR,S35 8NX
Department of Health,NHS Sheffield CCG,8/31/2020,C&M-GMS Prem Water Rates,PRC DELEGATED CO-COMMISSIONING,GRENOSIDE SURGERY,33668576,120.88,RAMW,S35 8NX
Department of Health,NHS Sheffield CCG,8/31/2020,C&M-GMS Prof Fees Prescribing,PRC DELEGATED CO-COMMISSIONING,GRENOSIDE SURGERY,33668576,62.19,DRGPPF,S35 8NX
Department of Health,NHS Sheffield CCG,8/31/2020,C&M-GMS QOF Aspiration,PRC DELEGATED CO-COMMISSIONING,GRENOSIDE SURGERY,33668576,"5,840.97",QUASPG,S35 8NX
Department of Health,NHS Sheffield CCG,8/31/2020,C&M-GMS Global Sum,PRC DELEGATED CO-COMMISSIONING,GREYSTONES MEDICAL CENTRE,33668578,"20,330.80",GSUMG,S11 7BJ
Department of Health,NHS Sheffield CCG,8/31/2020,C&M-GMS PCN DES Participation,PRC DELEGATED CO-COMMISSIONING,GREYSTONES MEDICAL CENTRE,33668578,406.83,PARTIG,S11 7BJ
Department of Health,NHS Sheffield CCG,8/31/2020,C&M-GMS PCO Other,PRC DELEGATED CO-COMMISSIONING,GREYSTONES MEDICAL CENTRE,33668578,264.20,CQCRG,S11 7BJ
Department of Health,NHS Sheffield CCG,8/31/2020,C&M-GMS Prem Notional Rent,PRC DELEGATED CO-COMMISSIONING,GREYSTONES MEDICAL CENTRE,33668578,"2,885.42",NRENT,S11 7BJ
Department of Health,NHS Sheffield CCG,8/31/2020,C&M-GMS Prem Rates,PRC DELEGATED CO-COMMISSIONING,GREYSTONES MEDICAL CENTRE,33668578,707.00,RANDR,S11 7BJ
Department of Health,NHS Sheffield CCG,8/31/2020,C&M-GMS QOF Aspiration,PRC DELEGATED CO-COMMISSIONING,GREYSTONES MEDICAL CENTRE,33668578,"2,423.98",QUASPG,S11 7BJ
Department of Health,NHS Sheffield CCG,8/31/2020,C&M-GMS Cost of Drugs -Prescribing,LOCAL ENHANCED SERVICES,HEELEY GREEN SURGERY,33668580,979.61,DRGP,S2 3AJ
Department of Health,NHS Sheffield CCG,8/31/2020,C&M-GMS Global Sum,PRC DELEGATED CO-COMMISSIONING,HEELEY GREEN SURGERY,33668580,"42,970.44",GSUMG,S2 3AJ
Department of Health,NHS Sheffield CCG,8/31/2020,C&M-GMS PCN DES Participation,PRC DELEGATED CO-COMMISSIONING,HEELEY GREEN SURGERY,33668580,857.46,PARTIG,S2 3AJ
Department of Health,NHS Sheffield CCG,8/31/2020,C&M-GMS Prem Notional Rent,PRC DELEGATED CO-COMMISSIONING,HEELEY GREEN SURGERY,33668580,"3,254.17",NRENT,S2 3AJ
Department of Health,NHS Sheffield CCG,8/31/2020,C&M-GMS Prof Fees Prescribing,PRC DELEGATED CO-COMMISSIONING,HEELEY GREEN SURGERY,33668580,73.70,DRGPPF,S2 3AJ
Department of Health,NHS Sheffield CCG,8/31/2020,C&M-GMS QOF Aspiration,PRC DELEGATED CO-COMMISSIONING,HEELEY GREEN SURGERY,33668580,"6,339.66",QUASPG,S2 3AJ
Department of Health,NHS Sheffield CCG,8/31/2020,C&M-GMS Cost of Drugs -Prescribing,LOCAL ENHANCED SERVICES,HOLLIES MEDICAL CENTRE,33668582,133.06,DRGP,S11 9AL
Department of Health,NHS Sheffield CCG,8/31/2020,C&M-GMS DES Learn Dsblty Hlth Chk,PRC DELEGATED CO-COMMISSIONING,HOLLIES MEDICAL CENTRE,33668582,140.00,LEARNG,S11 9AL
Department of Health,NHS Sheffield CCG,8/31/2020,C&M-GMS Global Sum,PRC DELEGATED CO-COMMISSIONING,HOLLIES MEDICAL CENTRE,33668582,"64,229.97",GSUMG,S11 9AL
Department of Health,NHS Sheffield CCG,8/31/2020,C&M-GMS PCN DES Participation,PRC DELEGATED CO-COMMISSIONING,HOLLIES MEDICAL CENTRE,33668582,"1,246.56",PARTIG,S11 9AL
Department of Health,NHS Sheffield CCG,8/31/2020,C&M-GMS PCO Other,PRC DELEGATED CO-COMMISSIONING,HOLLIES MEDICAL CENTRE,33668582,608.70,CQCRG,S11 9AL
Department of Health,NHS Sheffield CCG,8/31/2020,C&M-GMS Prem Notional Rent,PRC DELEGATED CO-COMMISSIONING,HOLLIES MEDICAL CENTRE,33668582,"3,229.17",NRENT,S11 9AL
Department of Health,NHS Sheffield CCG,8/31/2020,C&M-GMS Prem Rates,PRC DELEGATED CO-COMMISSIONING,HOLLIES MEDICAL CENTRE,33668582,"1,818.00",RANDR,S11 9AL
Department of Health,NHS Sheffield CCG,8/31/2020,C&M-GMS Prof Fees Prescribing,PRC DELEGATED CO-COMMISSIONING,HOLLIES MEDICAL CENTRE,33668582,34.55,DRGPPF,S11 9AL
Department of Health,NHS Sheffield CCG,8/31/2020,C&M-GMS QOF Aspiration,PRC DELEGATED CO-COMMISSIONING,HOLLIES MEDICAL CENTRE,33668582,"7,315.52",QUASPG,S11 9AL
Department of Health,NHS Sheffield CCG,8/31/2020,C&M-GMS Cost of Drugs -Prescribing,LOCAL ENHANCED SERVICES,HEALTH CARE SURGERY,33668584,143.29,DRGP,S5 8GS
Department of Health,NHS Sheffield CCG,8/31/2020,C&M-GMS Global Sum,PRC DELEGATED CO-COMMISSIONING,HEALTH CARE SURGERY,33668584,"40,758.22",GSUMG,S5 8GS
Department of Health,NHS Sheffield CCG,8/31/2020,C&M-GMS PCN DES Participation,PRC DELEGATED CO-COMMISSIONING,HEALTH CARE SURGERY,33668584,802.32,PARTIG,S5 8GS
Department of Health,NHS Sheffield CCG,8/31/2020,C&M-GMS PCO Other,PRC DELEGATED CO-COMMISSIONING,HEALTH CARE SURGERY,33668584,337.00,CQCRG,S5 8GS
Department of Health,NHS Sheffield CCG,8/31/2020,C&M-GMS Prem Notional Rent,PRC DELEGATED CO-COMMISSIONING,HEALTH CARE SURGERY,33668584,"3,862.50",NRENT,S5 8GS
Department of Health,NHS Sheffield CCG,8/31/2020,C&M-GMS Prem Rates,PRC DELEGATED CO-COMMISSIONING,HEALTH CARE SURGERY,33668584,755.00,RANDR,S5 8GS
Department of Health,NHS Sheffield CCG,8/31/2020,C&M-GMS Prof Fees Prescribing,PRC DELEGATED CO-COMMISSIONING,HEALTH CARE SURGERY,33668584,71.39,DRGPPF,S5 8GS
Department of Health,NHS Sheffield CCG,8/31/2020,C&M-GMS QOF Aspiration,PRC DELEGATED CO-COMMISSIONING,HEALTH CARE SURGERY,33668584,"4,354.34",QUASPG,S5 8GS
Department of Health,NHS Sheffield CCG,8/31/2020,C&M-GMS Cost of Drugs -Prescribing,LOCAL ENHANCED SERVICES,MEDICAL CENTRE CRYSTAL PEAKS,33668588,845.83,DRGP,S20 7HZ
Department of Health,NHS Sheffield CCG,8/31/2020,C&M-GMS Global Sum,PRC DELEGATED CO-COMMISSIONING,MEDICAL CENTRE CRYSTAL PEAKS,33668588,"49,607.02",GSUMG,S20 7HZ
Department of Health,NHS Sheffield CCG,8/31/2020,C&M-GMS PCN DES Participation,PRC DELEGATED CO-COMMISSIONING,MEDICAL CENTRE CRYSTAL PEAKS,33668588,973.29,PARTIG,S20 7HZ
Department of Health,NHS Sheffield CCG,8/31/2020,C&M-GMS PCO Locum Sickness,PRC DELEGATED CO-COMMISSIONING,MEDICAL CENTRE CRYSTAL PEAKS,33668588,"2,600.09",LOCSIG,S20 7HZ
Department of Health,NHS Sheffield CCG,8/31/2020,C&M-GMS PCO Other,PRC DELEGATED CO-COMMISSIONING,MEDICAL CENTRE CRYSTAL PEAKS,33668588,431.60,CQCRG,S20 7HZ
Department of Health,NHS Sheffield CCG,8/31/2020,C&M-GMS Prem Notional Rent,PRC DELEGATED CO-COMMISSIONING,MEDICAL CENTRE CRYSTAL PEAKS,33668588,270.00,NRENT,S20 7HZ
Department of Health,NHS Sheffield CCG,8/31/2020,C&M-GMS Prem Rates,PRC DELEGATED CO-COMMISSIONING,MEDICAL CENTRE CRYSTAL PEAKS,33668588,"1,073.00",RANDR,S20 7HZ
Department of Health,NHS Sheffield CCG,8/31/2020,C&M-GMS Prof Fees Prescribing,PRC DELEGATED CO-COMMISSIONING,MEDICAL CENTRE CRYSTAL PEAKS,33668588,253.33,DRGPPF,S20 7HZ
Department of Health,NHS Sheffield CCG,8/31/2020,C&M-GMS QOF Aspiration,PRC DELEGATED CO-COMMISSIONING,MEDICAL CENTRE CRYSTAL PEAKS,33668588,"6,365.03",QUASPG,S20 7HZ
Department of Health,NHS Sheffield CCG,8/31/2020,C&M-GMS Cost of Drugs -Prescribing,LOCAL ENHANCED SERVICES,MATHEWS PRACTICE,33668592,17.02,DRGP,S2 4UJ
Department of Health,NHS Sheffield CCG,8/31/2020,C&M-GMS Global Sum,PRC DELEGATED CO-COMMISSIONING,MATHEWS PRACTICE,33668592,"59,427.26",GSUMG,S2 4UJ
Department of Health,NHS Sheffield CCG,8/31/2020,C&M-GMS PCN DES Participation,PRC DELEGATED CO-COMMISSIONING,MATHEWS PRACTICE,33668592,"1,189.39",PARTIG,S2 4UJ
Department of Health,NHS Sheffield CCG,8/31/2020,C&M-GMS Prem Rates,PRC DELEGATED CO-COMMISSIONING,MATHEWS PRACTICE,33668592,"2,183.00",RANDR,S2 4UJ
Department of Health,NHS Sheffield CCG,8/31/2020,C&M-GMS Prof Fees Prescribing,PRC DELEGATED CO-COMMISSIONING,MATHEWS PRACTICE,33668592,18.42,DRGPPF,S2 4UJ
Department of Health,NHS Sheffield CCG,8/31/2020,C&M-GMS QOF Aspiration,PRC DELEGATED CO-COMMISSIONING,MATHEWS PRACTICE,33668592,"15,659.90",QUASPG,S2 4UJ
Department of Health,NHS Sheffield CCG,8/31/2020,C&M-GMS Cost of Drugs -Prescribing,LOCAL ENHANCED SERVICES,MILL ROAD SURGERY SHEFFIELD,33668595,"1,164.43",DRGP,S35 9XQ
Department of Health,NHS Sheffield CCG,8/31/2020,C&M-GMS Global Sum,PRC DELEGATED CO-COMMISSIONING,MILL ROAD SURGERY SHEFFIELD,33668595,"42,019.66",GSUMG,S35 9XQ
Department of Health,NHS Sheffield CCG,8/31/2020,C&M-GMS PCN DES Participation,PRC DELEGATED CO-COMMISSIONING,MILL ROAD SURGERY SHEFFIELD,33668595,834.04,PARTIG,S35 9XQ
Department of Health,NHS Sheffield CCG,8/31/2020,C&M-GMS PCO Other,PRC DELEGATED CO-COMMISSIONING,MILL ROAD SURGERY SHEFFIELD,33668595,352.00,CQCRG,S35 9XQ
Department of Health,NHS Sheffield CCG,8/31/2020,C&M-GMS Prem Notional Rent,PRC DELEGATED CO-COMMISSIONING,MILL ROAD SURGERY SHEFFIELD,33668595,"4,593.33",NRENT,S35 9XQ
Department of Health,NHS Sheffield CCG,8/31/2020,C&M-GMS Prem Rates,PRC DELEGATED CO-COMMISSIONING,MILL ROAD SURGERY SHEFFIELD,33668595,"1,073.00",RANDR,S35 9XQ
Department of Health,NHS Sheffield CCG,8/31/2020,C&M-GMS Prof Fees Prescribing,PRC DELEGATED CO-COMMISSIONING,MILL ROAD SURGERY SHEFFIELD,33668595,80.61,DRGPPF,S35 9XQ
Department of Health,NHS Sheffield CCG,8/31/2020,C&M-GMS QOF Aspiration,PRC DELEGATED CO-COMMISSIONING,MILL ROAD SURGERY SHEFFIELD,33668595,"7,296.24",QUASPG,S35 9XQ
Department of Health,NHS Sheffield CCG,8/31/2020,C&M-GMS Cost of Drugs -Prescribing,LOCAL ENHANCED SERVICES,NORFOLK PARK HEALTH CENTRE,33668600,"1,164.93",DRGP,S2 3TA
Department of Health,NHS Sheffield CCG,8/31/2020,C&M-GMS Global Sum,PRC DELEGATED CO-COMMISSIONING,NORFOLK PARK HEALTH CENTRE,33668600,"42,081.08",GSUMG,S2 3TA
Department of Health,NHS Sheffield CCG,8/31/2020,C&M-GMS PCN DES Participation,PRC DELEGATED CO-COMMISSIONING,NORFOLK PARK HEALTH CENTRE,33668600,800.91,PARTIG,S2 3TA
Department of Health,NHS Sheffield CCG,8/31/2020,C&M-GMS Prem Healthcentre Rent,PRC DELEGATED CO-COMMISSIONING,NORFOLK PARK HEALTH CENTRE,33668600,"25,249.98",HEALTH,S2 3TA
Department of Health,NHS Sheffield CCG,8/31/2020,C&M-GMS Prof Fees Prescribing,PRC DELEGATED CO-COMMISSIONING,NORFOLK PARK HEALTH CENTRE,33668600,103.64,DRGPPF,S2 3TA
Department of Health,NHS Sheffield CCG,8/31/2020,C&M-GMS QOF Aspiration,PRC DELEGATED CO-COMMISSIONING,NORFOLK PARK HEALTH CENTRE,33668600,"4,650.44",QUASPG,S2 3TA
Department of Health,NHS Sheffield CCG,8/31/2020,C&M-GMS Cost of Drugs -Prescribing,LOCAL ENHANCED SERVICES,NORWOOD MEDICAL CENTRE SHEFFIELD,33668603,291.59,DRGP,S5 7HD
Department of Health,NHS Sheffield CCG,8/31/2020,C&M-GMS DES Learn Dsblty Hlth Chk,PRC DELEGATED CO-COMMISSIONING,NORWOOD MEDICAL CENTRE SHEFFIELD,33668603,420.00,LEARNG,S5 7HD
Department of Health,NHS Sheffield CCG,8/31/2020,C&M-GMS Global Sum,PRC DELEGATED CO-COMMISSIONING,NORWOOD MEDICAL CENTRE SHEFFIELD,33668603,"68,098.13",GSUMG,S5 7HD
Department of Health,NHS Sheffield CCG,8/31/2020,C&M-GMS PCN DES Participation,PRC DELEGATED CO-COMMISSIONING,NORWOOD MEDICAL CENTRE SHEFFIELD,33668603,"1,343.92",PARTIG,S5 7HD
Department of Health,NHS Sheffield CCG,8/31/2020,C&M-GMS PCO Other,PRC DELEGATED CO-COMMISSIONING,NORWOOD MEDICAL CENTRE SHEFFIELD,33668603,513.80,CQCRG,S5 7HD
Department of Health,NHS Sheffield CCG,8/31/2020,C&M-GMS Prem Notional Rent,PRC DELEGATED CO-COMMISSIONING,NORWOOD MEDICAL CENTRE SHEFFIELD,33668603,"5,187.50",NRENT,S5 7HD
Department of Health,NHS Sheffield CCG,8/31/2020,C&M-GMS Prof Fees Prescribing,PRC DELEGATED CO-COMMISSIONING,NORWOOD MEDICAL CENTRE SHEFFIELD,33668603,92.13,DRGPPF,S5 7HD
Department of Health,NHS Sheffield CCG,8/31/2020,C&M-GMS QOF Aspiration,PRC DELEGATED CO-COMMISSIONING,NORWOOD MEDICAL CENTRE SHEFFIELD,33668603,"10,387.29",QUASPG,S5 7HD
Department of Health,NHS Sheffield CCG,8/31/2020,C&M-GMS Cost of Drugs -Dispensing,LOCAL ENHANCED SERVICES,OUGHTIBRIDGE SURGERY,33668607,"30,154.13","DRGD,DRGADV",S35 0FW
Department of Health,NHS Sheffield CCG,8/31/2020,C&M-GMS Global Sum,PRC DELEGATED CO-COMMISSIONING,OUGHTIBRIDGE SURGERY,33668607,"44,937.34",GSUMG,S35 0FW
Department of Health,NHS Sheffield CCG,8/31/2020,C&M-GMS PCN DES Participation,PRC DELEGATED CO-COMMISSIONING,OUGHTIBRIDGE SURGERY,33668607,892.20,PARTIG,S35 0FW
Department of Health,NHS Sheffield CCG,8/31/2020,C&M-GMS Prem Notional Rent,PRC DELEGATED CO-COMMISSIONING,OUGHTIBRIDGE SURGERY,33668607,"3,957.33",NRENT,S35 0FW
Department of Health,NHS Sheffield CCG,8/31/2020,C&M-GMS Prem Rates,PRC DELEGATED CO-COMMISSIONING,OUGHTIBRIDGE SURGERY,33668607,"1,073.00",RANDR,S35 0FW
Department of Health,NHS Sheffield CCG,8/31/2020,C&M-GMS Prof Fees Dispensing,PRC DELEGATED CO-COMMISSIONING,OUGHTIBRIDGE SURGERY,33668607,"4,347.09",DRGDPF,S35 0FW
Department of Health,NHS Sheffield CCG,8/31/2020,C&M-GMS PrscrptnChrgsColl&RmttdbyGP,LOCAL ENHANCED SERVICES,OUGHTIBRIDGE SURGERY,33668607,713.70,DRGPR,S35 0FW
Department of Health,NHS Sheffield CCG,8/31/2020,C&M-GMS QOF Aspiration,PRC DELEGATED CO-COMMISSIONING,OUGHTIBRIDGE SURGERY,33668607,"4,626.16",QUASPG,S35 0FW
Department of Health,NHS Sheffield CCG,8/31/2020,C&M-GMS Cost of Drugs -Prescribing,LOCAL ENHANCED SERVICES,SHARROW LANE MEDICAL CENTRE,33668611,78.16,DRGP,S11 8AN
Department of Health,NHS Sheffield CCG,8/31/2020,C&M-GMS Global Sum,PRC DELEGATED CO-COMMISSIONING,SHARROW LANE MEDICAL CENTRE,33668611,"24,642.00",GSUMG,S11 8AN
Department of Health,NHS Sheffield CCG,8/31/2020,C&M-GMS PCN DES Participation,PRC DELEGATED CO-COMMISSIONING,SHARROW LANE MEDICAL CENTRE,33668611,487.93,PARTIG,S11 8AN
Department of Health,NHS Sheffield CCG,8/31/2020,C&M-GMS PCO Other,PRC DELEGATED CO-COMMISSIONING,SHARROW LANE MEDICAL CENTRE,33668611,274.00,CQCRG,S11 8AN
Department of Health,NHS Sheffield CCG,8/31/2020,C&M-GMS Prem Notional Rent,PRC DELEGATED CO-COMMISSIONING,SHARROW LANE MEDICAL CENTRE,33668611,"2,741.67",NRENT,S11 8AN
Department of Health,NHS Sheffield CCG,8/31/2020,C&M-GMS Prof Fees Prescribing,PRC DELEGATED CO-COMMISSIONING,SHARROW LANE MEDICAL CENTRE,33668611,18.42,DRGPPF,S11 8AN
Department of Health,NHS Sheffield CCG,8/31/2020,C&M-GMS QOF Aspiration,PRC DELEGATED CO-COMMISSIONING,SHARROW LANE MEDICAL CENTRE,33668611,"4,180.81",QUASPG,S11 8AN
Department of Health,NHS Sheffield CCG,8/31/2020,C&M-GMS Cost of Drugs -Prescribing,LOCAL ENHANCED SERVICES,SHIREGREEN MEDICAL CENTRE,33668617,509.49,DRGP,S5 0RG
Department of Health,NHS Sheffield CCG,8/31/2020,C&M-GMS Global Sum,PRC DELEGATED CO-COMMISSIONING,SHIREGREEN MEDICAL CENTRE,33668617,"59,351.78",GSUMG,S5 0RG
Department of Health,NHS Sheffield CCG,8/31/2020,C&M-GMS PCN DES Participation,PRC DELEGATED CO-COMMISSIONING,SHIREGREEN MEDICAL CENTRE,33668617,"1,193.58",PARTIG,S5 0RG
Department of Health,NHS Sheffield CCG,8/31/2020,C&M-GMS PCO Other,PRC DELEGATED CO-COMMISSIONING,SHIREGREEN MEDICAL CENTRE,33668617,496.00,CQCRG,S5 0RG
Department of Health,NHS Sheffield CCG,8/31/2020,C&M-GMS Prem Cost Rent,PRC DELEGATED CO-COMMISSIONING,SHIREGREEN MEDICAL CENTRE,33668617,"1,792.33",COST,S5 0RG
Department of Health,NHS Sheffield CCG,8/31/2020,C&M-GMS Prem Notional Rent,PRC DELEGATED CO-COMMISSIONING,SHIREGREEN MEDICAL CENTRE,33668617,"5,375.00",NRENT,S5 0RG
Department of Health,NHS Sheffield CCG,8/31/2020,C&M-GMS Prof Fees Prescribing,PRC DELEGATED CO-COMMISSIONING,SHIREGREEN MEDICAL CENTRE,33668617,52.96,DRGPPF,S5 0RG
Department of Health,NHS Sheffield CCG,8/31/2020,C&M-GMS QOF Aspiration,PRC DELEGATED CO-COMMISSIONING,SHIREGREEN MEDICAL CENTRE,33668617,"10,441.01",QUASPG,S5 0RG
Department of Health,NHS Sheffield CCG,8/31/2020,C&M-GMS Cost of Drugs -Prescribing,LOCAL ENHANCED SERVICES,STONECROFT MEDICAL CENTRE,33668619,100.23,DRGP,S12 2LJ
Department of Health,NHS Sheffield CCG,8/31/2020,C&M-GMS Global Sum,PRC DELEGATED CO-COMMISSIONING,STONECROFT MEDICAL CENTRE,33668619,"33,911.03",GSUMG,S12 2LJ
Department of Health,NHS Sheffield CCG,8/31/2020,C&M-GMS PCN DES Participation,PRC DELEGATED CO-COMMISSIONING,STONECROFT MEDICAL CENTRE,33668619,668.04,PARTIG,S12 2LJ
Department of Health,NHS Sheffield CCG,8/31/2020,C&M-GMS PCO Other,PRC DELEGATED CO-COMMISSIONING,STONECROFT MEDICAL CENTRE,33668619,286.80,CQCRG,S12 2LJ
Department of Health,NHS Sheffield CCG,8/31/2020,C&M-GMS Prem Notional Rent,PRC DELEGATED CO-COMMISSIONING,STONECROFT MEDICAL CENTRE,33668619,"2,808.33",NRENT,S12 2LJ
Department of Health,NHS Sheffield CCG,8/31/2020,C&M-GMS Prem Rates,PRC DELEGATED CO-COMMISSIONING,STONECROFT MEDICAL CENTRE,33668619,"1,235.00",RANDR,S12 2LJ
Department of Health,NHS Sheffield CCG,8/31/2020,C&M-GMS Prof Fees Prescribing,PRC DELEGATED CO-COMMISSIONING,STONECROFT MEDICAL CENTRE,33668619,87.52,DRGPPF,S12 2LJ
Department of Health,NHS Sheffield CCG,8/31/2020,C&M-GMS QOF Aspiration,PRC DELEGATED CO-COMMISSIONING,STONECROFT MEDICAL CENTRE,33668619,"5,734.45",QUASPG,S12 2LJ
Department of Health,NHS Sheffield CCG,8/31/2020,C&M-GMS Global Sum,PRC DELEGATED CO-COMMISSIONING,STANNINGTON MEDICAL CENTRE,33668621,"26,928.84",GSUMG,S6 6BX
Department of Health,NHS Sheffield CCG,8/31/2020,C&M-GMS PCO Other,PRC DELEGATED CO-COMMISSIONING,STANNINGTON MEDICAL CENTRE,33668621,243.40,CQCRG,S6 6BX
Department of Health,NHS Sheffield CCG,8/31/2020,C&M-GMS Prem Notional Rent,PRC DELEGATED CO-COMMISSIONING,STANNINGTON MEDICAL CENTRE,33668621,"2,575.00",NRENT,S6 6BX
Department of Health,NHS Sheffield CCG,8/31/2020,C&M-GMS Prem Rates,PRC DELEGATED CO-COMMISSIONING,STANNINGTON MEDICAL CENTRE,33668621,500.00,RANDR,S6 6BX
Department of Health,NHS Sheffield CCG,8/31/2020,C&M-GMS Prem Water Rates,PRC DELEGATED CO-COMMISSIONING,STANNINGTON MEDICAL CENTRE,33668621,140.06,RAMW,S6 6BX
Department of Health,NHS Sheffield CCG,8/31/2020,C&M-GMS QOF Aspiration,PRC DELEGATED CO-COMMISSIONING,STANNINGTON MEDICAL CENTRE,33668621,"3,017.79",QUASPG,S6 6BX
Department of Health,NHS Sheffield CCG,8/31/2020,C&M-GMS Cost of Drugs -Prescribing,LOCAL ENHANCED SERVICES,TOTLEY RISE MEDICAL CENTRE,33668622,178.37,DRGP,S17 4DQ
Department of Health,NHS Sheffield CCG,8/31/2020,C&M-GMS Global Sum,PRC DELEGATED CO-COMMISSIONING,TOTLEY RISE MEDICAL CENTRE,33668622,"27,309.63",GSUMG,S17 4DQ
Department of Health,NHS Sheffield CCG,8/31/2020,C&M-GMS PCN DES Participation,PRC DELEGATED CO-COMMISSIONING,TOTLEY RISE MEDICAL CENTRE,33668622,531.20,PARTIG,S17 4DQ
Department of Health,NHS Sheffield CCG,8/31/2020,C&M-GMS Prem Notional Rent,PRC DELEGATED CO-COMMISSIONING,TOTLEY RISE MEDICAL CENTRE,33668622,"1,604.17",NRENT,S17 4DQ
Department of Health,NHS Sheffield CCG,8/31/2020,C&M-GMS Prem Rates,PRC DELEGATED CO-COMMISSIONING,TOTLEY RISE MEDICAL CENTRE,33668622,159.00,RANDR,S17 4DQ
Department of Health,NHS Sheffield CCG,8/31/2020,C&M-GMS Prof Fees Prescribing,PRC DELEGATED CO-COMMISSIONING,TOTLEY RISE MEDICAL CENTRE,33668622,32.24,DRGPPF,S17 4DQ
Department of Health,NHS Sheffield CCG,8/31/2020,C&M-GMS QOF Aspiration,PRC DELEGATED CO-COMMISSIONING,TOTLEY RISE MEDICAL CENTRE,33668622,"2,402.35",QUASPG,S17 4DQ
Department of Health,NHS Sheffield CCG,8/31/2020,C&M-GMS Cost of Drugs -Prescribing,LOCAL ENHANCED SERVICES,TRAMWAYS MEDICAL CENTRE,33668624,"1,682.29",DRGP,S6 4JQ
Department of Health,NHS Sheffield CCG,8/31/2020,C&M-GMS Global Sum,PRC DELEGATED CO-COMMISSIONING,TRAMWAYS MEDICAL CENTRE,33668624,"63,415.24",GSUMG,S6 4JQ
Department of Health,NHS Sheffield CCG,8/31/2020,C&M-GMS PCN DES Participation,PRC DELEGATED CO-COMMISSIONING,TRAMWAYS MEDICAL CENTRE,33668624,"1,257.39",PARTIG,S6 4JQ
Department of Health,NHS Sheffield CCG,8/31/2020,C&M-GMS PCO Other,PRC DELEGATED CO-COMMISSIONING,TRAMWAYS MEDICAL CENTRE,33668624,530.40,CQCRG,S6 4JQ
Department of Health,NHS Sheffield CCG,8/31/2020,C&M-GMS Prem Cost Rent,PRC DELEGATED CO-COMMISSIONING,TRAMWAYS MEDICAL CENTRE,33668624,"4,012.75",COST,S6 4JQ
Department of Health,NHS Sheffield CCG,8/31/2020,C&M-GMS Prem Rates,PRC DELEGATED CO-COMMISSIONING,TRAMWAYS MEDICAL CENTRE,33668624,"1,310.00",RANDR,S6 4JQ
Department of Health,NHS Sheffield CCG,8/31/2020,C&M-GMS Prof Fees Prescribing,PRC DELEGATED CO-COMMISSIONING,TRAMWAYS MEDICAL CENTRE,33668624,115.14,DRGPPF,S6 4JQ
Department of Health,NHS Sheffield CCG,8/31/2020,C&M-GMS QOF Aspiration,PRC DELEGATED CO-COMMISSIONING,TRAMWAYS MEDICAL CENTRE,33668624,"5,986.86",QUASPG,S6 4JQ
Department of Health,NHS Sheffield CCG,8/31/2020,C&M-GMS Cost of Drugs -Prescribing,LOCAL ENHANCED SERVICES,UPPERTHORPE MEDICAL CENTRE,33668627,"2,115.38",DRGP,S6 3FT
Department of Health,NHS Sheffield CCG,8/31/2020,C&M-GMS Global Sum,PRC DELEGATED CO-COMMISSIONING,UPPERTHORPE MEDICAL CENTRE,33668627,"89,188.96",GSUMG,S6 3FT
Department of Health,NHS Sheffield CCG,8/31/2020,C&M-GMS PCN DES Participation,PRC DELEGATED CO-COMMISSIONING,UPPERTHORPE MEDICAL CENTRE,33668627,"1,742.53",PARTIG,S6 3FT
Department of Health,NHS Sheffield CCG,8/31/2020,C&M-GMS Prem Notional Rent,PRC DELEGATED CO-COMMISSIONING,UPPERTHORPE MEDICAL CENTRE,33668627,"2,547.83",NRENT,S6 3FT
Department of Health,NHS Sheffield CCG,8/31/2020,C&M-GMS Prem Rates,PRC DELEGATED CO-COMMISSIONING,UPPERTHORPE MEDICAL CENTRE,33668627,"2,620.00",RANDR,S6 3FT
Department of Health,NHS Sheffield CCG,8/31/2020,C&M-GMS Prof Fees Prescribing,PRC DELEGATED CO-COMMISSIONING,UPPERTHORPE MEDICAL CENTRE,33668627,195.76,DRGPPF,S6 3FT
Department of Health,NHS Sheffield CCG,8/31/2020,C&M-GMS QOF Aspiration,PRC DELEGATED CO-COMMISSIONING,UPPERTHORPE MEDICAL CENTRE,33668627,"9,300.36",QUASPG,S6 3FT
Department of Health,NHS Sheffield CCG,8/31/2020,C&M-GMS Cost of Drugs -Prescribing,LOCAL ENHANCED SERVICES,WHITE HOUSE SURGERY SHEFFIELD,33668630,838.15,DRGP,S2 1SL
Department of Health,NHS Sheffield CCG,8/31/2020,C&M-GMS DES Learn Dsblty Hlth Chk,PRC DELEGATED CO-COMMISSIONING,WHITE HOUSE SURGERY SHEFFIELD,33668630,"1,120.00",LEARNG,S2 1SL
Department of Health,NHS Sheffield CCG,8/31/2020,C&M-GMS Global Sum,PRC DELEGATED CO-COMMISSIONING,WHITE HOUSE SURGERY SHEFFIELD,33668630,"54,455.09",GSUMG,S2 1SL
Department of Health,NHS Sheffield CCG,8/31/2020,C&M-GMS PCN DES Participation,PRC DELEGATED CO-COMMISSIONING,WHITE HOUSE SURGERY SHEFFIELD,33668630,"1,055.34",PARTIG,S2 1SL
Department of Health,NHS Sheffield CCG,8/31/2020,C&M-GMS Prem Notional Rent,PRC DELEGATED CO-COMMISSIONING,WHITE HOUSE SURGERY SHEFFIELD,33668630,"9,412.50",NRENT,S2 1SL
Department of Health,NHS Sheffield CCG,8/31/2020,C&M-GMS Prem Rates,PRC DELEGATED CO-COMMISSIONING,WHITE HOUSE SURGERY SHEFFIELD,33668630,"2,483.00",RANDR,S2 1SL
Department of Health,NHS Sheffield CCG,8/31/2020,C&M-GMS Prof Fees Prescribing,PRC DELEGATED CO-COMMISSIONING,WHITE HOUSE SURGERY SHEFFIELD,33668630,103.64,DRGPPF,S2 1SL
Department of Health,NHS Sheffield CCG,8/31/2020,C&M-GMS QOF Aspiration,PRC DELEGATED CO-COMMISSIONING,WHITE HOUSE SURGERY SHEFFIELD,33668630,"6,054.80",QUASPG,S2 1SL
Department of Health,NHS Sheffield CCG,8/31/2020,C&M-GMS Cost of Drugs -Prescribing,LOCAL ENHANCED SERVICES,WALKLEY HOUSE MEDICAL CENTRE,33668632,490.10,DRGP,S6 3TN
Department of Health,NHS Sheffield CCG,8/31/2020,C&M-GMS Global Sum,PRC DELEGATED CO-COMMISSIONING,WALKLEY HOUSE MEDICAL CENTRE,33668632,"90,350.11",GSUMG,S6 3TN
Department of Health,NHS Sheffield CCG,8/31/2020,C&M-GMS PCN DES Participation,PRC DELEGATED CO-COMMISSIONING,WALKLEY HOUSE MEDICAL CENTRE,33668632,"1,759.55",PARTIG,S6 3TN
Department of Health,NHS Sheffield CCG,8/31/2020,C&M-GMS PCO Locum Sickness,PRC DELEGATED CO-COMMISSIONING,WALKLEY HOUSE MEDICAL CENTRE,33668632,"11,688.40",LOCSIG,S6 3TN
Department of Health,NHS Sheffield CCG,8/31/2020,C&M-GMS Prem Notional Rent,PRC DELEGATED CO-COMMISSIONING,WALKLEY HOUSE MEDICAL CENTRE,33668632,"5,635.50",NRENT,S6 3TN
Department of Health,NHS Sheffield CCG,8/31/2020,C&M-GMS Prof Fees Prescribing,PRC DELEGATED CO-COMMISSIONING,WALKLEY HOUSE MEDICAL CENTRE,33668632,126.67,DRGPPF,S6 3TN
Department of Health,NHS Sheffield CCG,8/31/2020,C&M-GMS QOF Aspiration,PRC DELEGATED CO-COMMISSIONING,WALKLEY HOUSE MEDICAL CENTRE,33668632,"9,363.60",QUASPG,S6 3TN
Department of Health,NHS Sheffield CCG,8/31/2020,C&M-GMS Cost of Drugs -Prescribing,LOCAL ENHANCED SERVICES,BUCHANAN ROAD SURGERY,33681519,69.83,DRGP,S5 8AL
Department of Health,NHS Sheffield CCG,8/31/2020,C&M-GMS Global Sum,PRC DELEGATED CO-COMMISSIONING,BUCHANAN ROAD SURGERY,33681519,"36,502.70",GSUMG,S5 8AL
Department of Health,NHS Sheffield CCG,8/31/2020,C&M-GMS PCN DES Participation,PRC DELEGATED CO-COMMISSIONING,BUCHANAN ROAD SURGERY,33681519,734.72,PARTIG,S5 8AL
Department of Health,NHS Sheffield CCG,8/31/2020,C&M-GMS PCO Locum Sickness,PRC DELEGATED CO-COMMISSIONING,BUCHANAN ROAD SURGERY,33681519,"13,149.58",LOCSIG,S5 8AL
Department of Health,NHS Sheffield CCG,8/31/2020,C&M-GMS Prem Notional Rent,PRC DELEGATED CO-COMMISSIONING,BUCHANAN ROAD SURGERY,33681519,"2,595.83",NRENT,S5 8AL
Department of Health,NHS Sheffield CCG,8/31/2020,C&M-GMS Prem Rates,PRC DELEGATED CO-COMMISSIONING,BUCHANAN ROAD SURGERY,33681519,"1,283.00",RANDR,S5 8AL
Department of Health,NHS Sheffield CCG,8/31/2020,C&M-GMS Prof Fees Prescribing,PRC DELEGATED CO-COMMISSIONING,BUCHANAN ROAD SURGERY,33681519,23.03,DRGPPF,S5 8AL
Department of Health,NHS Sheffield CCG,8/31/2020,C&M-GMS QOF Aspiration,PRC DELEGATED CO-COMMISSIONING,BUCHANAN ROAD SURGERY,33681519,"5,555.81",QUASPG,S5 8AL
Department of Health,NHS Sheffield CCG,8/31/2020,C&M-GMS DES Learn Dsblty Hlth Chk,PRC DELEGATED CO-COMMISSIONING,CARTERKNOWLE & DORE MEDICAL PRACTICE,33681520,"6,720.00",LEARNG,S7 2DW
Department of Health,NHS Sheffield CCG,8/31/2020,C&M-GMS Global Sum,PRC DELEGATED CO-COMMISSIONING,CARTERKNOWLE & DORE MEDICAL PRACTICE,33681520,"89,051.56",GSUMG,S7 2DW
Department of Health,NHS Sheffield CCG,8/31/2020,C&M-GMS PCN DES Participation,PRC DELEGATED CO-COMMISSIONING,CARTERKNOWLE & DORE MEDICAL PRACTICE,33681520,"1,740.63",PARTIG,S7 2DW
Department of Health,NHS Sheffield CCG,8/31/2020,C&M-GMS PCO Locum Sickness,PRC DELEGATED CO-COMMISSIONING,CARTERKNOWLE & DORE MEDICAL PRACTICE,33681520,"8,229.57",LOCSIG,S7 2DW
Department of Health,NHS Sheffield CCG,8/31/2020,C&M-GMS Prem Notional Rent,PRC DELEGATED CO-COMMISSIONING,CARTERKNOWLE & DORE MEDICAL PRACTICE,33681520,"7,855.00",NRENT,S7 2DW
Department of Health,NHS Sheffield CCG,8/31/2020,C&M-GMS QOF Aspiration,PRC DELEGATED CO-COMMISSIONING,CARTERKNOWLE & DORE MEDICAL PRACTICE,33681520,"10,268.52",QUASPG,S7 2DW
Department of Health,NHS Sheffield CCG,8/31/2020,Clinical&Medical-Voluntary Sector,COLLABORATIVE COMMISSIONING,SOUTH YORKSHIRE HOUSING ASSOCIATION LTD,33694652,"139,149.72",,S1 4EB
Department of Health,NHS Sheffield CCG,8/31/2020,Charges from CSU,BUSINESS INFORMATICS,NHS NORTH OF ENGLAND CSU,33694823,"27,375.92",DSCRO Data Management Services AUG 20 NECS-3037-2180 QUERIES TO jordan.ho@nhs.net,WF3 1WE
Department of Health,NHS Sheffield CCG,8/31/2020,Clinical&Medical-Voluntary Sector,CHILD AND ADOLESCENT MENTAL HEALTH,SHEFFIELD FUTURES,33705113,"30,000.00",,S1 4GE
Department of Health,NHS Sheffield CCG,8/31/2020,Clinical&Medical-Independent Sector,CHILD AND ADOLESCENT MENTAL HEALTH,SHEFFIELD FUTURES,33705116,"37,333.56",,S1 4GE
Department of Health,NHS Sheffield CCG,8/31/2020,Clinical&Medical-Voluntary Sector,CHILD AND ADOLESCENT MENTAL HEALTH,SHEFFIELD FUTURES,33705117,"102,399.98",,S1 4GE
Department of Health,NHS Sheffield CCG,8/31/2020,Clinical&Medical-Serv Recd-F Trsts,BEREAVEMENT SERVICE,SHEFFIELD CHILDRENS NHS FOUNDATION TRUST,33707280,"54,000.00",https://nww.einvoice-prod.sbs.nhs.uk:8179/invoicepdf/bbbbdd32-be0f-54ae-bc2f-12ab259d4e98,S10 2TH
Department of Health,NHS Sheffield CCG,8/31/2020,Clinical&Medical-Voluntary Sector,CHILD AND ADOLESCENT MENTAL HEALTH,SHEFFIELD FUTURES,33707376,"25,600.00",,S1 4GE
